Cogmind - Beta 16 @@@ ROGUE MODE // 2026.01.30 @ 00:53:20 Player: k1ll3rb0t Result: Escaped! Performance ------------- Evolutions (9) 4500 Regions Visited (29) 5800 Robots Destroyed (467) 2335 Value Destroyed (25507) 25507 Prototype IDs (44) 880 Alien Tech Used (8) 1600 Bonus (20981) 20981 TOTAL SCORE: 61603 Bonus ------- Triggered High Security 500 High Alert Combat Kills 5199 Follower Combat Kills 2598 Entered Garrisons 200 Network Hubs Disabled 200 Acquired ECA 300 Met Warlord at Base 500 MAIN.C Attacked Warlord 500 Warlord Defense Kills 938 Built Enhanced Grunts 300 Met R17 at Cetus 500 Found Hidden Lab 3000 Met R17 at Research 2000 Pursued by Intercept 1500 Win 3000 Friendly Fire -254 Cogmind --------- Core Integrity 1196/1600 Matter 300/300 Energy 804/825 System Corruption 27% Temperature Cool (16) +ITN Movement Treading (160) Location To Epsilon Eridani Parts ------- > --- POWER (3) -------- Reinforced Antimatter Reactor Quantum Reactor Reinforced Quantum Reactor > --- PROPULSION (7) --- Centrium Heavy Treads Centrium Heavy Treads Advanced Heavy Siege Treads > --- UTILITY (12) ----- Advanced Heat Sink Advanced Heat Sink Huge Storage Unit Experimental Targeting Computer Advanced Target Analyzer Improved Kinecellerator Improved Weapon Cycler Advanced Weapon Cycler Graphene Brace Quantum Router Long-range Tractor Beam > --- WEAPON (4) ------- Enhanced Hardcell Cannon > --- INVENTORY (25) --- Reinforced Antimatter Reactor Biometal Medium Treads Wheel Compact Wheel Compact Wheel Advanced Energy Well (500) Compact Matter Pod (150) Long-range Sensor Array IFF Parser Transdimensional Reconstructor Spacefold Activator Vortex Shotgun (48) Vortex Shotgun (27) Enhanced Quantum Rifle Enhanced Quantum Rifle Linked Autogun Gamma Bomb Array Fusion Bomb Launcher Improved Plasma Cutter Peak State ------------ > --- POWER ------------ Quantum Reactor Quantum Reactor Improved Quantum Reactor > --- PROPULSION ------- Biometal Medium Treads Biometal Medium Treads Biometal Medium Treads Advanced Heavy Siege Treads Advanced Heavy Siege Treads > --- UTILITY ---------- Advanced Cryofiber Web Experimental Heat Sink Experimental Cooling System Huge Storage Unit IFF Parser Improved Weapon Cycler Advanced Transmission Jammer Advanced Phase Shifter Medium Regenerative Plating Graphene Brace Improved Force Field Quantum Router > --- WEAPON ----------- Enhanced Quantum Rifle Enhanced Nova Cannon Enhanced Hardcell Cannon Enhanced Hardcell Cannon > --- INVENTORY -------- Reinforced Antimatter Reactor Quantum Reactor Enhanced Armored Medium Treads Biometal Medium Treads Experimental Biometal Heavy Treads Advanced Heavy Siege Treads Advanced Energy Well Compact Matter Pod Improved Transmission Jammer Authchip [Propulsion] Long-range Tractor Beam Transdimensional Reconstructor Subatomic Replicator Spacefold Activator Vortex Shotgun Vortex Shotgun Enhanced Quantum Rifle Enhanced Nova Cannon Enhanced Nova Cannon Enhanced Hardcell Cannon Gamma Bomb Array Fusion Bomb Launcher Improved Plasma Cutter [Rating: 226] Favorites ----------- Power Quantum Reactor Engine Cooled Ion Engine Power Core Fission Core Reactor Quantum Reactor Propulsion Advanced Heavy Siege Treads Treads Advanced Heavy Siege Treads Leg Aluminum Leg Wheel Compact Wheel Hover Unit Cooled Antigrav System Utility Huge Storage Unit Device Hardlight Generator Storage Huge Storage Unit Processor Improved Targeting Computer Hackware Quantum Router Protection Centrium Medium Armor Plating Artifact LC Capacitor Weapon Enhanced Hardcell Cannon Energy Gun Gatling Laser Energy Cannon Enhanced Nova Cannon Ballistic Gun Heavy Machine Gun Ballistic Cannon Enhanced Hardcell Cannon Launcher Rocket Launcher Special Weapon Improved Plasma Cutter Impact Weapon Heavy Mace Slashing Weapon Great Axe Build | -11 -10 -9 -9 -8 -8 -8 -8 -8 -6 -6 -6 -6 -6 -5 -5 -5 -5 -5 -5 -4 -4 -4 -4 -3 -3 -2 -2 -2 -1 ------- Run | Yrd Mat Mat Min Mat Sto Gar Rec Scr Fac Ext Cet Arc Hub Fac Was Fac Upp Upp War Pro Fac Arm Lab Res Qua Res Tes Sec Acc Slots Evolved 18 | . . 2 . 2 . . . . 4 . . . . 2 . . . . . . 2 . . 2 . 2 . . 2 Power 2 | . . . . . . . . . . . . . . 1 . . . . . . . . . . . . . . 1 Propulsion 4 | . . . . 1 . . . . 2 . . . . . . . . . . . 1 . . . . . . . . Utility 10 | . . 1 . 1 . . . . 2 . . . . 1 . . . . . . 1 . . 2 . 2 . . . Weapon 2 | . . 1 . . . . . . . . . . . . . . . . . . . . . . . . . . 1 Parts Attached 369 | 7 28 4 1 11 20 24 8 7 13 25 11 6 14 11 2 9 5 . 26 8 25 18 8 4 4 17 5 17 31 Power 39 | 1 4 1 . 3 3 2 . . . 4 2 . . 3 . 1 1 . 3 . 2 . . . . 3 . 2 4 Engine 12 | 1 3 . . . 2 1 . . . 4 . . . . . . . . 1 . . . . . . . . . . Core 9 | . 1 1 . 3 1 1 . . . . . . . . . 1 1 . . . . . . . . . . . . Reactor 18 | . . . . . . . . . . . 2 . . 3 . . . . 2 . 2 . . . . 3 . 2 4 Propulsion 88 | 2 9 . . 1 7 5 2 1 4 6 2 3 1 4 . 3 . . 7 3 7 6 1 . . 3 . 4 7 Treads 56 | . 2 . . . 3 4 1 1 1 3 2 3 1 2 . 2 . . 5 3 4 5 1 . . 3 . 4 6 Leg 7 | 2 4 . . . . . . . . . . . . . . . . . 1 . . . . . . . . . . Wheel 24 | . 3 . . 1 4 1 1 . 3 3 . . . 2 . 1 . . . . 3 1 . . . . . . 1 Hover 1 | . . . . . . . . . . . . . . . . . . . 1 . . . . . . . . . . Flight . | . . . . . . . . . . . . . . . . . . . . . . . . . . . . . . Utility 144 | 2 3 1 1 4 4 9 4 5 6 7 4 3 9 3 2 4 2 . 8 2 10 5 3 3 3 10 5 8 14 Device 76 | 1 . . . 1 3 2 2 1 3 5 2 1 4 1 2 4 2 . 6 2 8 4 1 2 . 6 1 6 6 Storage 8 | 1 2 . . 1 . . . 1 . 1 1 . . . . . . . . . . . . . . . . 1 . Processor 13 | . . . . . . 2 . 1 2 . . . . 1 . . . . . . . . . . . 1 1 . 5 Hackware 15 | . . . . . . . 1 . 1 . . 1 3 . . . . . 1 . . . . 1 1 2 1 . 3 Protection 29 | . 1 1 1 2 1 5 1 2 . 1 1 1 2 1 . . . . 1 . 2 1 1 . 1 1 2 . . Artifact 3 | . . . . . . . . . . . . . . . . . . . . . . . 1 . 1 . . 1 . Weapon 98 | 2 12 2 . 3 6 8 2 1 3 8 3 . 4 1 . 1 2 . 8 3 6 7 4 1 1 1 . 3 6 Energy Gun 22 | 2 1 . . . 4 . . . . 5 1 . . . . . 1 . 1 . 1 1 2 . . . . 1 2 Energy Cannon 13 | . . . . . . 1 . . 2 . . . . . . . . . 3 2 1 1 . . . . . 2 1 Ballistic Gun 31 | . 7 . . 2 2 6 2 . 1 1 1 . 3 1 . 1 1 . 1 1 . 1 . . . . . . . Ballistic Cannon 15 | . . . . . . . . . . . . . . . . . . . 1 . 4 3 2 . 1 1 . . 3 Launcher 6 | . 1 2 . . . 1 . . . . . . . . . . . . . . . 1 . 1 . . . . . Special Weapon 7 | . 3 . . . . . . . . 1 1 . 1 . . . . . 1 . . . . . . . . . . Impact Weapon 1 | . . . . 1 . . . . . . . . . . . . . . . . . . . . . . . . . Slashing Weapon 3 | . . . . . . . . 1 . 1 . . . . . . . . 1 . . . . . . . . . . Piercing Weapon . | . . . . . . . . . . . . . . . . . . . . . . . . . . . . . . Special Melee Weapon . | . . . . . . . . . . . . . . . . . . . . . . . . . . . . . . Unidentified Prototypes 49 | . 1 . . . 5 . . . 2 . 6 . 1 3 . . . . 9 . 2 1 6 1 1 2 1 4 4 Corrupted Parts 7 | . . . . . . . . 1 . . . 1 1 . . . . . . 3 . . . . . . 1 . . System Corruption 21 | . . . . . . . . 2 . . . 3 2 . . . . . . 13 . . . . . . 1 . . Parts Lost 79 | . 2 . 1 2 1 7 . . . 1 2 . 13 . 2 4 3 . 3 1 6 . . . . 3 1 4 23 Power 7 | . 1 . . . . 1 . . . . . . 1 . . . 1 . 1 . . . . . . . . . 2 Propulsion 22 | . . . . . 1 3 . . . 1 1 . 3 . 1 1 . . 1 . 4 . . . . . . . 6 Utility 33 | . . . 1 2 . 3 . . . . . . 6 . . 1 1 . 1 . 1 . . . . 2 1 4 10 Weapon 17 | . 1 . . . . . . . . . 1 . 3 . 1 2 1 . . 1 1 . . . . 1 . . 5 Highest Loss Streak 10 | . 2 . 1 1 1 3 . . . 1 2 . 10 . 2 3 3 . 2 3 1 . . . . 1 1 1 5 To Critical Strikes . | . . . . . . . . . . . . . . . . . . . . . . . . . . . . . . Average Backups 22 | 5 12 14 14 21 22 23 24 24 24 24 23 23 22 17 23 23 23 24 23 21 22 22 22 21 22 22 20 21 21 Power 1 | 1 . . 1 1 1 1 1 1 1 1 1 1 1 . 1 1 . 1 1 1 1 . 1 1 1 . . 1 1 Propulsion 3 | 2 6 6 6 7 7 6 4 4 2 2 2 2 2 1 1 . 1 1 1 3 2 3 2 2 2 2 2 3 2 Utility 9 | . 1 2 2 8 7 9 11 12 11 10 11 11 10 8 13 13 12 12 12 8 9 9 10 10 10 9 8 5 7 Weapon 6 | . 4 5 5 4 6 6 7 6 6 7 7 8 7 6 8 8 7 8 7 7 8 7 6 6 7 7 7 7 7 Tool/Special . | . . . . . . . . . . . . . . . . . . . . . . . . . . . . . . Unused Backups 80 | . 4 1 . 3 3 4 2 1 6 1 3 4 1 1 . 3 1 . 10 1 8 12 2 . 1 1 . 2 5 Power 9 | . . . . 1 . 1 . . 3 . 1 . . . . . . . 2 . . . . . . . . 1 . Propulsion 13 | . 2 . . . 1 . 1 . . . . . 1 . . . . . . . 1 5 . . . . . . 2 Utility 31 | . 1 1 . 1 2 2 1 1 . 1 2 4 . 1 . 1 1 . 6 . 2 1 1 . . . . 1 1 Weapon 24 | . 1 . . 1 . . . . 3 . . . . . . 2 . . 1 1 5 6 1 . 1 1 . . 1 Tool/Special 3 | . . . . . . 1 . . . . . . . . . . . . 1 . . . . . . . . . 1 Average Slot Usage (%) 89 | . 98 97 100 90 89 93 97 86 86 95 89 92 90 92 86 82 93 94 92 93 90 78 78 76 77 79 81 89 89 Engine 1 | . 9 8 . . 5 5 . . . 5 . . . . . . . . . . . . . . . . . . . Core 3 | . 3 2 11 9 3 3 9 9 6 . . . . . . . 5 5 4 . . . . . . . . . . Reactor 3 | . . . . . . . . . . . 5 6 6 10 11 10 5 5 5 11 7 5 5 4 4 5 8 8 10 Treads 17 | . 9 22 22 14 9 15 9 17 13 13 21 26 24 10 8 12 23 23 22 23 25 16 24 22 22 20 20 20 17 Leg 1 | . 17 . . . . . . . . . . . . . . . . . . . . . . . . . . . . Wheel 6 | . 1 . . 11 17 11 18 9 12 16 2 . . 10 8 3 . . . . 4 3 . . . . . . . Device 14 | . 12 8 . 9 8 8 9 7 5 18 20 17 10 13 22 13 16 17 15 17 18 21 18 17 17 21 16 29 28 Storage 6 | . 14 11 11 9 9 9 9 9 6 6 6 6 6 5 5 5 5 5 5 5 5 5 5 4 4 4 4 4 3 Processor 3 | . . . . . . 4 5 . 8 6 6 6 5 2 5 5 5 5 5 5 5 5 4 . . . . . 5 Hackware 2 | . . . . . . . 3 3 4 . . 1 7 5 5 5 5 5 4 5 1 . . 4 4 5 7 5 3 Protection 6 | . 1 13 22 9 9 9 8 8 6 6 5 6 7 10 . 8 5 5 6 5 5 5 5 4 4 4 7 8 1 Energy Gun 1 | . 2 . . . 3 . . . . 14 . . . . . . . . . . 2 . . . . . . . 2 Energy Cannon 1 | . . . . . . . . . . . . . . . . 2 5 5 2 7 3 . 1 2 4 2 2 6 3 Ballistic Gun 10 | . 22 22 27 24 19 21 24 9 16 4 19 20 19 10 2 5 10 11 6 3 1 . . . . . . . . Ballistic Cannon 2 | . . . . . . . . . . . . . . . . . . . . . 4 9 10 9 7 9 8 5 6 Launcher 1 | . . 8 5 . . . . 5 . . . . . . 10 . . . 2 . . . . . . . 1 . . Slashing Weapon 1 | . . . . . . . . 7 2 . . . . 4 . 2 . . 1 5 3 4 3 . . . . . . Peak Build Rating 226 | 7 13 19 19 30 36 46 40 45 63 62 95 96 111 96 88 112 105 99 132 127 128 151 194 209 219 223 220 214 226 Average Rating 94 | 5 10 15 18 28 31 36 38 38 58 55 87 94 98 92 72 93 100 99 102 114 113 133 168 207 208 216 205 201 216 On Entrance 91 | . 7 13 18 19 30 36 40 27 45 61 56 95 96 71 94 64 101 99 99 110 104 100 147 194 209 209 212 195 204 Avg Prop Armor Cover (%) 7 | . . . . 7 4 4 6 5 9 11 11 8 7 9 10 14 . . . . 12 11 . . . . . 7 . Naked Turns . | . . . . . . . . . . . . . . . . . . . . . . . . . . . . . . Heaviest Build 235 | 13 32 41 41 114 120 142 128 129 133 134 139 133 133 154 148 153 144 139 162 163 169 184 191 192 192 195 192 189 235 Greatest Support 270 | 20 43 43 43 43 66 67 26 63 56 48 152 155 180 32 32 154 154 154 162 162 157 240 265 265 265 265 265 265 270 Greatest Overweight (x) 9 | . 1 . . 7 5 7 6 7 4 8 4 1 1 4 8 9 . . 1 1 6 4 . . . . . 1 1 Average Overweight (x) 1 | . . . . 5 3 4 4 3 2 2 . . . 4 5 4 . . . . 1 . . . . . . . . Largest Inventory Capacity 25 | 8 15 15 15 25 25 25 25 25 25 25 25 25 25 25 25 25 25 25 25 25 25 25 25 25 25 25 25 25 25 Average Capacity 23 | 7 12 15 15 24 25 25 25 25 25 25 25 25 25 25 25 25 25 25 25 25 25 25 25 25 25 25 25 25 25 Most Carried 25 | 8 15 15 15 25 25 25 25 25 25 25 25 25 25 25 25 25 25 25 25 25 25 25 25 25 25 25 23 25 25 Average Carried 23 | 5 12 14 14 23 24 24 24 24 24 24 24 24 23 19 25 24 24 25 24 24 24 24 24 23 24 24 22 24 23 Final Capacity 25 | 8 15 15 15 25 25 25 25 25 25 25 25 25 25 25 25 25 25 25 25 25 25 25 25 25 25 25 25 25 25 Final Carried 25 | 8 15 15 14 25 25 25 25 25 25 25 25 25 20 25 25 25 25 25 24 25 25 25 25 25 25 24 19 25 20 Class Distribution -------------------- 16% | Hacker-Tank 16% | Commander-Mutant 14% | Scavenger-Tank 13% | Scavenger-Mutant 13% | Tank 11% | Mutant 6% | Commander-Tank 5% | Scavenger-Gunner Dominant Class ---------------- Mutant | -10/Materials Tank | -9/Materials Tank | -9/Mines Tank | -8/Materials Tank | -8/Storage Tank | -8/Garrison Commander-Tank | -8/Recycling Commander-Mutant | -8/Scraptown Tank | -6/Factory Scavenger-Tank | -6/Extension Scavenger-Tank | -6/Cetus Scavenger-Tank | -6/Archives Scavenger-Tank | -6/Hub_04(d) Scavenger-Mutant | -5/Factory Scavenger-Gunner | -5/Waste Scavenger-Mutant | -5/Factory Scavenger-Tank | -5/Upper Caves Scavenger-Tank | -5/Upper Caves Scavenger-Tank | -5/Warlord Scavenger-Mutant | -4/Proximity Caves Scavenger-Mutant | -4/Factory Mutant | -4/Armory Mutant | -4/Lab Hacker-Tank | -3/Research Hacker-Tank | -3/Quarantine Hacker-Tank | -2/Research Hacker-Tank | -2/Testing Hacker-Tank | -2/Section 7 Scavenger-Gunner | -1/Access Resources | -11 -10 -9 -9 -8 -8 -8 -8 -8 -6 -6 -6 -6 -6 -5 -5 -5 -5 -5 -5 -4 -4 -4 -4 -3 -3 -2 -2 -2 -1 ----------- Run | Yrd Mat Mat Min Mat Sto Gar Rec Scr Fac Ext Cet Arc Hub Fac Was Fac Upp Upp War Pro Fac Arm Lab Res Qua Res Tes Sec Acc Matter Collected 18739 | 256 762 156 151 690 801 1704 564 203 707 696 290 315 814 150 745 526 200 76 517 215 1722 853 361 376 581 893 245 972 2198 Remotely 4730 | . . . . . . . 10 . . . . . 501 . 745 287 . . 236 . 487 278 . 26 336 523 245 156 900 Salvage Created 21895 | 107 903 171 139 525 1304 1603 704 . 876 1175 274 329 1095 44 893 521 227 76 313 170 1980 376 . 252 688 396 243 1791 4720 Parts 969 | 6 67 18 6 34 70 91 28 . 38 40 11 25 56 4 2 25 4 . 15 7 89 11 . 6 44 11 9 79 173 Haulers Intercepted 6 | . . . . . 4 . . . . . . . 1 . . . . . . . . . . 1 . . . . . Recyclers Shooed 13 | 2 1 . . . 1 . 2 . 1 1 . . . . . . . . . . 5 . . . . . . . . Parts Field Recycled . | . . . . . . . . . . . . . . . . . . . . . . . . . . . . . . Retrieved Matter . | . . . . . . . . . . . . . . . . . . . . . . . . . . . . . . Parts Self-Destructed 11 | . . . . . . . . . . . . . . . . . 4 . . 7 . . . . . . . . . Prevented . | . . . . . . . . . . . . . . . . . . . . . . . . . . . . . . Parts Restored . | . . . . . . . . . . . . . . . . . . . . . . . . . . . . . . Kills | -11 -10 -9 -9 -8 -8 -8 -8 -8 -6 -6 -6 -6 -6 -5 -5 -5 -5 -5 -5 -4 -4 -4 -4 -3 -3 -2 -2 -2 -1 ------- Run | Yrd Mat Mat Min Mat Sto Gar Rec Scr Fac Ext Cet Arc Hub Fac Was Fac Upp Upp War Pro Fac Arm Lab Res Qua Res Tes Sec Acc Combat Hostiles Destroyed 385 | . 19 11 6 13 19 40 3 . 13 19 5 1 18 4 5 5 3 . 7 9 37 7 1 5 14 14 5 32 70 Melee 1 | . . . . . . . . . . . . . 1 . . . . . . . . . . . . . . . . Guns 151 | . 18 2 3 10 19 31 3 . 10 10 5 1 14 1 . 5 2 . . . 7 2 . . . 4 . . 4 Cannons 134 | . . . . . . . . . 1 . . . . . . . 1 . 7 3 17 5 1 2 13 6 1 27 50 AOE 78 | . 1 9 3 3 . 9 . . 2 6 . . 3 3 5 . . . . 5 9 . . 3 . 3 2 . 12 Classes Destroyed 25 | 2 6 . 1 2 1 4 . . . 1 . . 2 . 1 . . . 1 . 1 1 . . 1 1 . . . Worker 15 | . 2 . . 2 . . . . . . . . 3 . . . . . . . 3 . . . . . . 1 4 Builder 10 | . 2 . . . 1 . 1 . . . . . 2 . . . . . . . 1 . . . 1 . . 1 1 Tunneler 4 | 2 . . . . . . 1 . . . . . 1 . . . . . . . . . . . . . . . . Hauler 6 | . . . . . 4 . . . . . . . 1 . . . . . . . . . . 1 . . . . . Recycler 24 | 1 4 . . . 2 . 7 . 3 2 . . . . . 1 . . . . 2 . . . . . . . 2 Mechanic 3 | . 1 . . . . . . . . . . . . . . 1 . . . . . . . . . . . . 1 Operator 13 | . 1 . . . 1 . . . . . . 8 . . . . . . . . 1 . . 1 . . . . 1 Watcher 4 | . . . . . . 1 . . . 1 . . . . . . . . . . . . . . . . . . 2 Swarmer 86 | . 9 7 3 3 3 7 . . 4 4 . . . 4 . . . . . 5 12 . . 3 5 4 3 5 5 Saboteur 4 | . . . . . . . . . . . . . 1 . . . . . 1 . . . . . . . . . 2 Grunt 111 | . 10 4 2 7 9 20 . . 3 5 . . 5 . . 1 . . 3 1 6 2 . . . . . 12 21 Brawler 14 | . . . . . . 2 . . 1 1 . . 1 . . 1 1 . . . . . . . . . . . 7 Duelist 6 | . . . 1 . . 1 . . . 1 . . 1 . . . 1 . . . . . . . . . . 1 . Protector 1 | . . . . . . . . . . . . . 1 . . . . . . . . . . . . . . . . Researcher 1 | . . . . . . . . . . . . . . . . . . . . . . . . . 1 . . . . Sentry 45 | . . . . 2 7 6 3 . 3 6 . 1 2 . . 1 1 . . 1 4 2 . 1 . . . 3 2 Demolisher 1 | . . . . . . . . . . . . . . . . . . . . . . 1 . . . . . . . Specialist 4 | . . . . . . 1 . . . . . . . . . . . . . . . . . . 3 . . . . Hunter 26 | . . . . 1 . . . . 1 . . . 4 . . . . . . . 6 . . . . 4 2 . 8 Programmer 48 | . . . . . . 3 . . 1 . . . 1 . . 2 . . 2 2 8 1 . . 6 . . 6 16 Heavy 3 | . . . . . . . . . . . . . . . . . . . . . 1 1 . . . . . . 1 Behemoth 3 | . . . . . . . . . . 2 . . . . . . . . . . . . . 1 . . . . . Compactor 5 | . . . . . . . . . . . . . . . 5 . . . . . . . . . . . . . . Cetus Guard 5 | . . . . . . . . . . . 5 . . . . . . . . . . . . . . . . . . S7 Guard 1 | . . . . . . . . . . . . . . . . . . . . . . . . . . . . 1 . Lightning 2 | . . . . . . . . . . . . . 2 . . . . . . . . . . . . . . . . Tracker 8 | . . . . . . . . . . . . . . . . . . . . . . . . . . 2 . 2 4 Combat Programmer 7 | . . . . . . . . . . . . . . . . . . . . . . . . . . 1 . 2 4 Striker 3 | . . . . . . . . . . . . . . . . . . . . . . . . . . 3 . . . Executioner 1 | . . . . . . . . . . . . . . . . . . . 1 . . . . . . . . . . Packrat 1 | . . . . . . . . . . . . . . . . . . 1 . . . . . . . . . . . Butcher 1 | . . . . . . . . . . . . . . . . . . . 1 . . . . . . . . . . Guerrilla 1 | . . . . . . . . . . 1 . . . . . . . . . . . . . . . . . . . Best Kill Streak 11 | 1 4 6 3 3 5 10 4 . 5 9 3 5 9 4 2 2 2 . 3 5 11 5 1 3 5 7 3 5 10 Combat Bots Only 10 | . 3 6 3 3 4 10 1 . 5 9 3 1 6 4 2 2 2 . 3 5 10 5 1 3 5 7 3 5 8 Max Kills in Single Turn 5 | 1 2 3 3 3 2 2 2 . 2 4 1 1 3 2 1 1 1 1 1 3 2 1 1 2 1 2 2 2 5 Gunslinging 1 | . 1 . . . . 1 . . . 1 . . . . . . . . . . . . . . . . . . . Exploded 5 | . 1 3 3 3 . 2 . . 2 4 . . 2 2 1 . . . . 3 2 . . 2 . 2 2 . 5 Melee 1 | . . . . . . . . . . . . . 1 . . . . . . . . . . . . . . . . Uniques/NPCs Destroyed 1 | . . . . . . . . . . . . . . . . . . . . . . . 1 . . . . . . A5 (-4/Lab) Combat | -11 -10 -9 -9 -8 -8 -8 -8 -8 -6 -6 -6 -6 -6 -5 -5 -5 -5 -5 -5 -4 -4 -4 -4 -3 -3 -2 -2 -2 -1 -------- Run | Yrd Mat Mat Min Mat Sto Gar Rec Scr Fac Ext Cet Arc Hub Fac Was Fac Upp Upp War Pro Fac Arm Lab Res Qua Res Tes Sec Acc Hostile Shots Fired 2936 | . 79 20 12 68 74 234 14 . 166 285 38 4 364 12 . 54 18 . 149 31 233 33 13 22 75 147 75 181 535 Missed 838 | . 18 5 3 15 18 70 4 . 53 111 12 2 93 7 . 13 1 . 51 9 69 14 4 11 21 25 26 33 150 Hits 2098 | . 61 15 9 53 56 164 10 . 113 174 26 2 271 5 . 41 17 . 98 22 164 19 9 11 54 122 49 148 385 Melee 60 | . . . 2 . . 3 . . . 2 . . 8 . . 2 12 . 4 . . . . . . 11 . . 16 Projectile 2038 | . 61 15 7 53 56 161 10 . 113 172 26 2 263 5 . 39 5 . 94 22 164 19 9 11 54 111 49 148 369 Critical Strikes 89 | . . 1 . 1 3 8 . . 2 . 3 . 15 . . 3 1 . 5 2 7 . . . 2 4 1 10 21 Actively Blocked 30 | . . . . . . . . . . . . . . . . . . . . . . . . . . 4 1 10 15 Part Disruptions 13 | . . . . . . . . . . . . . 2 . . 1 . . . . 1 . . . 1 1 . 2 5 Damage Taken 34771 | . 719 168 134 638 756 2115 122 . 1092 1249 545 45 4724 67 183 942 616 . 1732 295 3196 455 118 192 892 2623 1045 2630 7478 Core 2024 | . 131 19 . 9 86 125 . . 24 55 35 . 201 12 14 70 91 . 70 15 224 44 . . 96 233 44 22 404 Absorbed by Shields 7023 | . . . . 176 216 391 28 . 350 464 164 8 228 . . . . . 201 109 193 140 121 97 566 744 . 870 1957 Reduced by Siege Mode 1466 | . . . . . . . . . . . . . 160 . . . . . . . . . 26 . 19 220 . 317 724 Ignored by Resistances 790 | . . . . . . 4 24 . . 213 107 . . . . . . . 409 33 . . . . . . . . . Regen/Repaired (Parts) 2935 | . . . . . . . . 753 . . . . . . . 652 . . 78 . . . 13 22 23 213 413 306 462 Core Remaining (%) 75 | 100 47 . 95 . . . . 60 . . . . 62 . . . . . . 72 . . 76 . 92 . . 79 74 Volleys Fired 1359 | 9 92 8 10 40 48 121 24 . 33 36 21 19 59 7 30 28 18 17 36 21 170 32 7 21 59 74 12 134 173 Largest 4 | 1 2 3 3 3 3 3 3 . 3 3 3 3 3 2 2 3 3 3 1 2 3 3 3 3 3 3 3 3 4 Hottest 370 | 50 100 79 69 100 107 85 85 . 105 240 120 80 105 70 66 98 149 101 58 155 224 178 174 236 236 236 171 360 370 Shots Fired 2790 | 9 169 15 28 114 144 276 69 . 80 86 49 57 150 8 56 62 35 17 38 22 215 47 21 37 103 135 20 270 458 Gun 1404 | 9 154 10 27 111 144 260 69 . 71 80 40 57 139 2 1 46 19 3 1 1 56 4 . . . 9 . 22 69 Cannon 1250 | . . . . . . 3 . . 5 3 5 . 4 4 4 16 16 14 37 19 150 43 21 34 103 125 15 248 381 Launcher 114 | . 1 5 1 1 . 13 . . 4 3 . . 5 2 51 . . . . 2 9 . . 3 . 1 5 . 8 Special 22 | . 14 . . 2 . . . . . . 4 . 2 . . . . . . . . . . . . . . . . Kinetic 1720 | . 136 10 27 111 141 256 69 . 71 20 40 57 139 2 1 46 17 3 7 1 58 26 21 17 50 85 12 106 191 Thermal 843 | 9 23 . . 2 2 . . . 3 61 2 . 4 4 4 16 18 14 . 3 125 17 . 17 53 40 3 164 259 Explosive 103 | . 1 5 1 1 . 13 . . 4 3 . . 5 2 51 . . . . 2 9 . . 3 . 1 1 . 1 Electromagnetic 53 | . 9 . . . 1 7 . . 2 2 3 . . . . . . . . 3 15 . . . . . 4 . 7 Entropic 65 | . . . . . . . . . . . . . . . . . . . 31 13 8 4 . . . 9 . . . Robot Hit Streak 45 | 6 10 6 7 19 45 19 15 . 7 18 21 8 12 2 10 5 18 5 11 9 30 11 5 14 12 18 1 21 35 Robot Miss Streak 5 | 1 5 3 3 2 2 4 2 . 5 4 2 3 3 . 1 5 1 . 2 1 4 3 3 1 2 3 3 4 5 Penetration Max 1 | . . . . . . . . . . . 1 1 1 . . . 1 . . 1 . . . . . . . . . Secondary Targets 35 | . 4 . 1 1 1 12 . . 4 2 1 . 7 . . . . . . . . 2 . . . . . . . Max Gunslinging Chain 1 | . 1 . 1 1 1 1 . . 1 1 1 . 1 . . . . . . . . 1 . . . . . . . Capacitor 100 | . . . . . . . . . . . . . . . . . . . . . 100 . . . . . . . . Shots Hit Robots 1711 | 8 104 6 22 91 111 177 44 . 44 66 41 35 106 1 35 29 21 3 31 16 135 17 12 18 44 64 4 131 295 Core Hits 897 | 4 49 14 10 27 46 80 14 . 33 71 17 18 71 5 16 13 7 1 14 9 72 11 4 14 16 28 12 55 166 Critical Kills 25 | . 1 . . . . 2 1 . . . 1 3 1 . . 1 . . . . 7 1 . . 1 . . 5 1 Critical Parts Destroyed 32 | . 1 . . . . 4 1 . . . . 1 7 . . 2 . . . . 14 1 . . . 1 . . . Critical Strikes 126 | . 3 . . . . 6 2 . . . 1 5 8 . . 3 . . 17 4 31 2 . . 3 3 2 11 25 Burn 4 | . 1 . . . . . . . . . . . . . . . . . . . 3 . . . . . . . . Meltdown 7 | . . . . . . . . . . . . . . . . . . . . . . . . . 1 . . 5 1 Destroy 54 | . 2 . . . . 5 2 . . . 1 5 8 . . 3 . . . . 26 2 . . . . . . . Blast 37 | . . . . . . . . . . . . . . . . . . . 1 . . . . . 2 2 2 6 24 Corrupt 2 | . . . . . . . . . . . . . . . . . . . . 2 . . . . . . . . . Smash 1 | . . . . . . 1 . . . . . . . . . . . . . . . . . . . . . . . Sever 1 | . . . . . . . . . . . . . . . . . . . . . 1 . . . . . . . . Detonate 1 | . . . . . . . . . . . . . . . . . . . . . . . . . . 1 . . . Sunder 19 | . . . . . . . . . . . . . . . . . . . 16 2 1 . . . . . . . . Melee Attacks 154 | . . . . 15 12 30 . . 15 . . . . 14 . 4 . . . 1 11 27 16 3 6 . . . . Impact 57 | . . . . 15 12 30 . . . . . . . . . . . . . . . . . . . . . . . Slashing 97 | . . . . . . . . . 15 . . . . 14 . 4 . . . 1 11 27 16 3 6 . . . . Piercing . | . . . . . . . . . . . . . . . . . . . . . . . . . . . . . . Sneak Attacks 16 | . . . . 1 3 1 . . 2 . . . . . . 2 . . . . 6 . . . 1 . . . . Combat Hostiles . | . . . . . . . . . . . . . . . . . . . . . . . . . . . . . . Follow-up Attacks . | . . . . . . . . . . . . . . . . . . . . . . . . . . . . . . Damage Inflicted 65668 | 103 1200 516 460 1597 2021 4051 970 . 1496 2449 994 1038 3634 244 4571 940 620 93 2219 1380 5723 727 372 1134 2091 3231 580 5734 15480 Guns 21246 | 103 1122 95 311 1360 1712 3031 970 . 865 1767 917 1038 2826 24 . 660 396 27 . . 1241 226 . . . 522 . 351 1682 Cannons 29835 | . . . . . . . . . 96 27 77 . . . . 105 224 66 2210 1097 2757 501 372 791 1990 2360 148 5359 11655 Explosions 12996 | . 78 421 149 167 . 956 . . 376 655 . . 808 220 4571 . . . . 283 1166 . . 343 . 349 432 . 2022 Melee 1427 | . . . . 70 309 54 . . 159 . . . . . . 175 . . . . 559 . . . 101 . . . . Ramming 164 | . . . . . . 10 . . . . . . . . . . . . 9 . . . . . . . . 24 121 Kinetic 30354 | . 1006 95 311 1360 1655 2935 970 . 865 365 917 1038 2826 24 . 660 371 27 222 . 591 501 372 527 1170 2017 148 3052 6329 Thermal 16417 | 103 48 . . . 35 . . . 60 1402 . . . . . 105 249 66 . 74 2604 . . 264 820 481 . 2658 7448 Explosive 10850 | . 78 421 149 167 . 956 . . 376 655 . . 808 220 4571 . . . . 283 1002 . . 343 . 211 158 . 452 Electromagnetic 2469 | . 68 . . . 22 96 . . 36 27 77 . . . . . . . . 265 474 . . . . . 274 . 1130 Impact 433 | . . . . 70 309 54 . . . . . . . . . . . . . . . . . . . . . . . Slashing 994 | . . . . . . . . . 159 . . . . . . 175 . . . . 559 . . . 101 . . . . Piercing . | . . . . . . . . . . . . . . . . . . . . . . . . . . . . . . Entropic 3987 | . . . . . . . . . . . . . . . . . . . 1988 758 493 226 . . . 522 . . . Highest Corruption 59 | . 2 . . . 1 10 10 2 . . . 3 28 . 55 58 59 59 59 18 5 6 10 . 6 1 2 16 27 Average Corruption 10 | . 2 . . . 1 4 10 2 . . . 2 14 . 29 55 58 59 16 5 2 5 7 . 5 1 1 7 10 Corruption Purged 3 | . . . . . . . . . . . . 3 . . . . . . . . . . . . . . . . . Corruption Blocked . | . . . . . . . . . . . . . . . . . . . . . . . . . . . . . . Effects 540 | . 28 . . . 3 59 73 . . . . 2 9 . 33 53 31 23 9 15 23 35 14 . 14 4 4 47 61 Message Errors 114 | . 3 . . . . 14 16 . . . . . . . 5 11 10 6 2 1 1 10 4 . 2 2 1 16 10 Matter Fused 134 | . 6 . . . . 10 21 . . . . 1 4 . 9 12 7 4 2 5 11 9 2 . 6 2 2 11 10 Heat Flow Errors 60 | . 3 . . . . 8 9 . . . . 1 1 . 2 6 1 3 1 2 5 5 2 . 1 . 1 3 6 Energy Discharges 62 | . 7 . . . 1 6 8 . . . . . . . 2 6 6 2 2 3 3 2 1 . . . . 4 9 Parts Rejected 4 | . . . . . . . . . . . . . . . 2 1 . . . . . . . . . . . 1 . Parts Fused 5 | . . . . . . 1 1 . . . . . . . . . . 1 . . . . . . . . . 1 1 Data Loss (minor) 59 | . 5 . . . 1 8 11 . . . . . 1 . 2 3 2 3 . 3 2 5 1 . 2 . . 4 6 Data Loss (major) 18 | . . . . . . 5 3 . . . . . . . 1 3 . . . 1 . . 2 . . . . . 3 Misfires 22 | . 1 . . . . 2 2 . . . . . . . 3 2 1 . 2 . . 2 1 . 2 . . 3 1 Alerts 10 | . 2 . . . 1 3 1 . . . . . . . 1 2 . . . . . . . . . . . . . Misdirections 5 | . . . . . . . . . . . . . . . 3 1 . . . . . . . . . . . . 1 Weapon Failures 47 | . 1 . . . . 2 1 . . . . . 3 . 3 6 4 4 . . 1 2 1 . 1 . . 4 14 Overload Shots 6 | . . . . . . . . . 3 1 1 . . . . . . . . 1 . . . . . . . . . Overflow Damage 1887 | . 6 . . 100 189 54 . . 30 . . . 26 1 13 . 23 20 79 158 398 . . 31 148 104 2 141 364 Projectiles 1134 | . . . . . . . . . 30 . . . . . . . 23 20 79 147 132 . . 18 87 95 2 141 360 Explosions 200 | . 6 . . 45 . . . . . . . . 26 1 13 . . . . 11 72 . . 13 . 9 . . 4 Melee 553 | . . . . 55 189 54 . . . . . . . . . . . . . . 194 . . . 61 . . . . Knockbacks 125 | . . . . 1 . . . . . . . . . . . . . . 3 . 4 3 2 . 10 33 1 30 38 Impact 3 | . . . . 1 . . . . . . . . . . . . . . . . . . . . . . . . 2 Kinetic 116 | . . . . . . . . . . . . . . . . . . . 2 . 4 3 2 . 10 32 1 29 33 Secondary 6 | . . . . . . . . . . . . . . . . . . . 1 . . . . . . 1 . 1 3 Self-Inflicted Damage 594 | . . 26 . . . 53 . . 36 67 . . 28 . 190 55 . . . . 42 . . . . . 13 . 84 Shots 26 | . . 1 . . . 2 . . 1 2 . . 1 . 6 1 . . . . 2 . . . . . 1 . 9 Rammed 7 | . . . . . . 1 . . . . . . . . . . . . 1 . . . . . . . . 1 4 Targets Rammed 8 | . . . . . . 1 . . . . . . . . . . . . 1 . . . . . . . . 1 5 Kicked . | . . . . . . . . . . . . . . . . . . . . . . . . . . . . . . Crushed 1 | . . . . . . . . . . . . . . . . . . . . . . . . . . . . . 1 Highest Temperature 497 | 50 278 72 174 172 175 336 237 . 214 212 20 65 197 410 192 497 242 210 220 209 244 23 257 4 . 166 . 262 254 Average Temperature 80 | 21 63 34 87 60 44 76 70 . 72 79 15 30 56 252 43 142 122 99 100 100 86 23 128 4 . 60 . 88 150 Received Heat Transfer 3958 | . 243 54 30 258 329 547 35 . 137 361 70 . 278 . . 117 18 . 530 78 99 79 . 9 . . 36 247 403 Thermoelectric Energy+ 1620 | . . . . . . . . . . . . . . . . . . . . . . . . . . . . . 1620 Effects 13 | . 2 . . . . 5 . . . . . . . 1 . 2 . . . . . . . . . . . . 3 Shutdowns 2 | . . . . . . . . . . . . . . . . 2 . . . . . . . . . . . . . Energy Bleed 3 | . 2 . . . . . . . . . . . . . . . . . . . . . . . . . . . 1 Interference 7 | . . . . . . 5 . . . . . . . . . . . . . . . . . . . . . . 2 Damage (minor) 1 | . . . . . . . . . . . . . . 1 . . . . . . . . . . . . . . . Siege Activations 23 | . . . . . . . . . . . . . 2 . . . . . . . . . 1 . 1 3 . 6 10 Total Turns 619 | . . . . . . . . . . . . . 83 . . . . . . . . . 25 . 7 68 . 184 252 Longest Duration 76 | . . . . . . . . . . . . . 66 . . . . . . . . . 25 . 7 32 . 57 76 Martial Activations . | . . . . . . . . . . . . . . . . . . . . . . . . . . . . . . Shielding Activations . | . . . . . . . . . . . . . . . . . . . . . . . . . . . . . . Robots Disrupted 1 | . . . . . . . . . . 1 . . . . . . . . . . . . . . . . . . . Combat Hostiles 1 | . . . . . . . . . . 1 . . . . . . . . . . . . . . . . . . . Robots Corrupted 12 | . . . . 1 . . . . . . . . . . . . . . . 1 4 . . . . 1 2 . 3 Combat Hostiles 10 | . . . . . . . . . . . . . . . . . . . . 1 4 . . . . 1 2 . 2 Parts Fried 31 | . . . . . 4 2 . . . 1 . . . . . . . . . 4 3 . . . . . 4 . 13 Impact Corruptions 10 | . . . . 2 6 1 . . . . . . . . . . . . . . . . . . . 1 . . . Robots Melted 11 | . . . . . . . . . . 3 . . . . . . . . . . . . . . 1 . . 5 2 Combat Hostiles 11 | . . . . . . . . . . 3 . . . . . . . . . . . . . . 1 . . 5 2 Parts Melted 45 | 1 2 . . . . 1 . . . 11 . . . . . . . . . . 8 2 . . 3 . . 8 9 Heat Transferred 17844 | 296 222 . . . 74 . . . 80 3100 . . . . . 150 387 100 . 100 3418 . . 222 666 396 . 2368 6265 Parts Sabotaged 6 | . . . . . . . . . . . . . 2 . . . . . 4 . . . . . . . . . . Parts Stolen . | . . . . . . . . . . . . . . . . . . . . . . . . . . . . . . Parts Stripped . | . . . . . . . . . . . . . . . . . . . . . . . . . . . . . . Power Chain Reactions 4 | . . . . . . . . . . . . . . . . . . . . . 1 . . . . . . . 3 Alert | -11 -10 -9 -9 -8 -8 -8 -8 -8 -6 -6 -6 -6 -6 -5 -5 -5 -5 -5 -5 -4 -4 -4 -4 -3 -3 -2 -2 -2 -1 ------- Run | Yrd Mat Mat Min Mat Sto Gar Rec Scr Fac Ext Cet Arc Hub Fac Was Fac Upp Upp War Pro Fac Arm Lab Res Qua Res Tes Sec Acc Maximum Alert Level 5 | . 1 . . . 1 5 3 . 1 3 2 1 4 2 . 1 . . . . 2 3 . . 1 1 1 2 5 Low Security (%) 51 | 100 98 100 100 100 96 2 . . 81 49 15 11 42 . 100 85 . . . . 62 14 . 100 90 87 86 54 . Level 1 15 | . 1 . . . 3 16 . . 18 42 79 88 6 . . 14 . . . . 5 45 . . 9 12 13 17 23 Level 2 13 | . . . . . . 15 40 . . 1 4 . 26 100 . . . . . . 31 20 . . . . . 27 8 Level 3 9 | . . . . . . 19 59 . . 5 . . 5 . . . . . . . . 19 . . . . . . 19 Level 4 6 | . . . . . . 23 . . . . . . 19 . . . . . . . . . . . . . . . 36 Level 5 2 | . . . . . . 22 . . . . . . . . . . . . . . . . . . . . . . 4 High Security . | . . . . . . . . . . . . . . . . . . . . . . . . . . . . . 6 Max Security . | . . . . . . . . . . . . . . . . . . . . . . . . . . . . . . Peak Influence 2243 | 5 211 138 102 92 206 2243 1047 . 389 780 426 345 1192 658 168 366 . . . . 605 833 . 160 273 360 322 642 1952 Initial 1009 | . . 37 34 19 27 . 1009 . . 184 426 102 61 560 168 5 . . . . . 295 . . 8 153 195 47 377 Average 388 | . 87 47 34 40 63 1052 727 . 102 253 276 270 482 561 103 80 . . . . 248 407 . 72 107 93 153 273 1000 Influence Increases 18759 | 15 671 286 148 372 784 2523 258 . 713 1280 336 329 1830 176 158 511 60 . 185 200 1236 1144 . 333 550 581 240 1323 2517 Destroy 0b10 Robot/C 8960 | . 380 220 120 260 420 960 140 . 260 600 160 80 680 80 . 100 60 . 140 180 740 560 . 100 300 280 100 640 1400 Destroy 0b10 Robot/NC 490 | 15 50 . . 10 50 5 55 . 25 25 10 40 75 . . 10 . . . . 35 5 . 10 5 . . 10 55 Destroy Leader 1646 | . 80 30 20 60 140 10 . . 72 72 . . 184 10 . 20 . . . 20 150 182 . 32 30 70 20 140 304 Allied During Kill 1764 | . . . . . 74 119 27 . 10 495 135 120 584 . . . . . . . . 200 . . . . . . . Successful Hack 528 | . 19 . . 16 19 51 14 . 23 35 . . 18 6 . 15 . . . . 51 40 . 51 30 . 30 83 27 Select Force Hacks 140 | . 60 . . . . . . . . . . . 50 30 . . . . . . . . . . . . . . . Disable Machine 975 | . . . . . 30 30 . . 135 30 15 75 120 . . 60 . . . . 15 75 . 45 105 45 15 105 75 Anti-Garrison Action 1650 | . . . . . . 1100 . . 150 . . . . . . 200 . . . . . . . . . . . . 200 Destroy Structure 2081 | . 22 36 8 26 6 173 7 . 38 23 16 14 104 50 158 106 . . . . 170 82 . 80 80 171 45 270 396 Partial Spotted 30 | . . . . . . . . . . . . . . . . . . . . . 15 . . . . 15 . . . Lose Combat Pursuer 495 | . 60 . . . 45 75 15 . . . . . 15 . . . . . 45 . 60 . . 15 . . 30 75 60 Influence Decreases 16857 | 15 583 284 188 356 850 280 2032 469 336 895 842 408 862 839 632 199 379 1 66 319 633 914 833 318 292 505 504 778 1245 Entered New Map 5533 | . . 51 56 31 39 . 1234 469 . 193 336 154 116 585 314 3 119 1 . 119 . 308 833 . 7 120 154 38 253 Time Decay 8365 | 15 563 233 122 305 467 . 618 . 267 422 326 254 326 254 278 156 230 . 36 200 497 486 . 318 285 355 190 550 612 Lost Part 750 | . 20 . 10 20 10 60 . . . 10 20 . 130 . 20 40 30 . 30 . 40 . . . . 30 10 40 230 Lost Ally 910 | . . . . . 80 220 30 . 20 120 160 . 140 . 20 . . . . . . 120 . . . . . . . Purge Threat 1299 | . . . . . 254 . 150 . 49 150 . . 150 . . . . . . . 96 . . . . . 150 150 150 Squads Dispatched 88 | . 4 2 . 4 2 . . . 5 . . . 14 2 . 2 . . . . 7 4 . 5 2 1 6 5 23 Investigation 9 | . 3 . . . . . . . . . . . 1 1 . 1 . . . . . . . 2 . . . . 1 Extermination 21 | . . . . . . . . . 2 . . . 1 1 . 1 . . . . 4 2 . . 2 . 1 2 5 Reinforcement 25 | . 1 2 . 4 2 . . . 1 . . . 3 . . . . . . . 3 2 . 3 . . 2 1 1 Assault 17 | . . . . . . . . . 2 . . . 4 . . . . . . . . . . . . . . 1 10 Garrison 11 | . . . . . . . . . . . . . 5 . . . . . . . . . . . . . 3 . 3 Intercept 5 | . . . . . . . . . . . . . . . . . . . . . . . . . . 1 . 1 3 Searches Triggered . | . . . . . . . . . . . . . . . . . . . . . . . . . . . . . . Construction Impeded 2 | . . . . . . . . . . . . . 2 . . . . . . . . . . . . . . . . Haulers Reinforced . | . . . . . . . . . . . . . . . . . . . . . . . . . . . . . . Active Scanning Responses . | . . . . . . . . . . . . . . . . . . . . . . . . . . . . . . Cargo Convoy Interrupts . | . . . . . . . . . . . . . . . . . . . . . . . . . . . . . . Stealth | -11 -10 -9 -9 -8 -8 -8 -8 -8 -6 -6 -6 -6 -6 -5 -5 -5 -5 -5 -5 -4 -4 -4 -4 -3 -3 -2 -2 -2 -1 --------- Run | Yrd Mat Mat Min Mat Sto Gar Rec Scr Fac Ext Cet Arc Hub Fac Was Fac Upp Upp War Pro Fac Arm Lab Res Qua Res Tes Sec Acc Distress Signals 37 | . 2 . . 3 3 . . . . 1 2 . 5 . . . . . . . . 1 . 5 . 11 2 . 2 Communications Jammed 190 | . . . . . . . . . . . . . . . . 11 . . . . 61 7 . 5 . . . 1 105 Distress Signals 177 | . . . . . . . . . . . . . . . . 11 . . . . 56 6 . 5 . . . 1 98 Times Spotted 641 | . 41 12 6 20 35 52 5 . 15 33 9 10 49 5 5 7 3 . 52 11 54 23 1 13 18 19 9 37 97 Peak Tracking Total 14 | . 4 5 3 5 6 8 3 . 5 9 5 1 13 4 2 3 2 . 14 5 6 4 1 3 5 4 5 5 8 Tactical Retreats 22 | . 3 . . . 2 3 1 . . . . . 1 . . . . . 3 . 2 . . 1 . . 2 2 2 Traps | -11 -10 -9 -9 -8 -8 -8 -8 -8 -6 -6 -6 -6 -6 -5 -5 -5 -5 -5 -5 -4 -4 -4 -4 -3 -3 -2 -2 -2 -1 ------- Run | Yrd Mat Mat Min Mat Sto Gar Rec Scr Fac Ext Cet Arc Hub Fac Was Fac Upp Upp War Pro Fac Arm Lab Res Qua Res Tes Sec Acc Traps Triggered 29 | . 3 . . 1 1 10 . . . 5 . . 2 1 . 2 . . . . 2 . . . . . . 1 1 Indirectly . | . . . . . . . . . . . . . . . . . . . . . . . . . . . . . . Trap Hack Attempts . | . . . . . . . . . . . . . . . . . . . . . . . . . . . . . . Triggered . | . . . . . . . . . . . . . . . . . . . . . . . . . . . . . . Disarmed . | . . . . . . . . . . . . . . . . . . . . . . . . . . . . . . Reprogrammed . | . . . . . . . . . . . . . . . . . . . . . . . . . . . . . . Reused . | . . . . . . . . . . . . . . . . . . . . . . . . . . . . . . Traps Extracted . | . . . . . . . . . . . . . . . . . . . . . . . . . . . . . . Installed . | . . . . . . . . . . . . . . . . . . . . . . . . . . . . . . Triggered . | . . . . . . . . . . . . . . . . . . . . . . . . . . . . . . Machines | -11 -10 -9 -9 -8 -8 -8 -8 -8 -6 -6 -6 -6 -6 -5 -5 -5 -5 -5 -5 -4 -4 -4 -4 -3 -3 -2 -2 -2 -1 ---------- Run | Yrd Mat Mat Min Mat Sto Gar Rec Scr Fac Ext Cet Arc Hub Fac Was Fac Upp Upp War Pro Fac Arm Lab Res Qua Res Tes Sec Acc Machines Disabled 84 | . . . . . 2 9 . . 10 4 1 5 8 . . 4 . . 1 . 2 5 7 3 7 3 1 7 5 Max in Single Turn 3 | . . . . . 1 2 . . 3 1 1 1 1 . . 2 . . 1 . 1 1 1 1 1 1 1 1 1 Garrison Access 6 | . . . . . . . . . 1 . . . 1 . . 1 . . . . . . . . . 2 . . 1 Garrison Relay 5 | . . . . . . 5 . . . . . . . . . . . . . . . . . . . . . . . Phase Generator 1 | . . . . . . 1 . . . . . . . . . . . . . . . . . . . . . . . Network Hub 1 | . . . . . . . . . . . . . 1 . . . . . . . . . . . . . . . . Machines Repaired . | . . . . . . . . . . . . . . . . . . . . . . . . . . . . . . Machines Dismantled 4 | . . . . . . . . . . . . . . . . . . . 1 . . . 1 . . . . . 2 Machines Sabotaged 1 | . . . . . . . . . . . . . 1 . . . . . . . . . . . . . . . . Overloaded Fab Kills . | . . . . . . . . . . . . . . . . . . . . . . . . . . . . . . Hacking | -11 -10 -9 -9 -8 -8 -8 -8 -8 -6 -6 -6 -6 -6 -5 -5 -5 -5 -5 -5 -4 -4 -4 -4 -3 -3 -2 -2 -2 -1 --------- Run | Yrd Mat Mat Min Mat Sto Gar Rec Scr Fac Ext Cet Arc Hub Fac Was Fac Upp Upp War Pro Fac Arm Lab Res Qua Res Tes Sec Acc Machines Accessed 90 | . 7 1 . 4 8 4 5 . 9 9 1 . 4 3 . 4 . . 1 . 3 5 2 1 3 . 2 7 7 Terminals 70 | . 5 1 . 4 7 4 5 . 6 9 1 . 4 2 . 2 . . . . 1 3 . 1 3 . 2 6 4 Fabricators 3 | . . . . . . . . . 1 . . . . . . . . . . . . 1 . . . . . . 1 Repair Stations 2 | . . . . . . . . . . . . . . . . 1 . . . . . 1 . . . . . . . Recycling Units 4 | . 2 . . . . . . . . . . . . 1 . . . . . . 1 . . . . . . . . Scanalyzers 3 | . . . . . . . . . 1 . . . . . . . . . . . 1 . . . . . . 1 . Garrison Access 5 | . . . . . 1 . . . 1 . . . . . . 1 . . . . . . . . . . . . 2 Total Hacks 302 | . 13 1 . 14 18 4 14 . 31 16 2 . 11 15 . 10 . . 1 . 10 11 23 9 22 . 10 45 22 Successful 135 | . 5 . . 8 10 4 5 . 19 6 . . 5 3 . 6 . . 1 . 6 6 23 2 3 . 3 15 5 Failed 165 | . 8 1 . 6 8 . 8 . 11 10 2 . 6 12 . 4 . . . . 4 5 . 7 19 . 7 30 17 Catastrophic 38 | . 2 1 . 2 . . 2 . . 3 1 . 1 4 . 2 . . . . 1 1 . 2 5 . . 5 6 Database Lockouts 2 | . . . . . . . 1 . 1 . . . . . . . . . . . . . . . . . . . . Manual 101 | . 10 . . 9 4 . 7 . 5 2 1 . 5 9 . 3 . . . . 5 4 . 3 9 . 4 14 7 Terminals 222 | . 10 1 . 14 17 4 14 . 15 16 2 . 11 8 . 4 . . . . 6 9 . 9 22 . 10 40 10 Fabricators 9 | . . . . . . . . . 2 . . . . . . . . . . . . 1 . . . . . . 6 Repair Stations 5 | . . . . . . . . . . . . . . . . 4 . . . . . 1 . . . . . . . Recycling Units 11 | . 3 . . . . . . . . . . . . 7 . . . . . . 1 . . . . . . . . Scanalyzers 21 | . . . . . . . . . 13 . . . . . . . . . . . 3 . . . . . . 5 . Garrison Access 10 | . . . . . 1 . . . 1 . . . . . . 2 . . . . . . . . . . . . 6 Terminal Hacks 93 | . 3 . . 7 9 4 5 . 5 6 . . 4 1 . 2 . . 1 . 3 3 23 2 2 . 2 10 1 Record 24 | . . . . . 1 . . . . . . . . . . . . . . . . . 22 . . . . 1 . Part Schematic 3 | . 1 . . 1 . . 1 . . . . . . . . . . . . . . . . . . . . . . Robot Analysis 2 | . . . . 1 . . 1 . . . . . . . . . . . . . . . . . . . . . . Open Door 11 | . . . . . 3 1 . . . 5 . . . . . . . . 1 . . 1 . . . . . . . Open DSF 1 | . . . . . . . . . 1 . . . . . . . . . . . . . . . . . . . . Level Access Points 2 | . . . . . . . . . . . . . 1 . . . . . . . . . . . . . . 1 . Branch Access Points 3 | . . . . 1 . . . . 1 . . . . . . . . . . . . . . 1 . . . . . Emergency Access Points 2 | . . . . . . 1 . . . . . . . . . . . . . . . 1 . . . . . . . Machine Index 1 | . . . . . . . . . . . . . . . . . . . . . . . . . . . . 1 . Terminal Index 5 | . . . . 1 . . . . 1 . . . 1 1 . . . . . . . . . 1 . . . . . Alert Level 5 | . . . . . . . 2 . . . . . . . . 1 . . . . . 1 . . . . . 1 . Unreport Threat 10 | . . . . . 2 . 1 . 1 1 . . 1 . . . . . . . 1 . . . . . 1 1 1 Locate Traps 7 | . . . . 1 2 . . . 1 . . . 1 . . . . . . . 1 . . . . . . 1 . Maintenance Status 4 | . . . . . . . . . . . . . . . . 1 . . . . . . . . 1 . 1 1 . Security Status 1 | . . . . . . . . . . . . . . . . . . . . . . . . . . . . 1 . Hauler Manifests 3 | . 1 . . . 1 . . . . . . . . . . . . . . . 1 . . . . . . . . Registered Components 3 | . 1 . . 1 . . . . . . . . . . . . . . . . . . . . . . . 1 . Registered Prototypes 1 | . . . . 1 . . . . . . . . . . . . . . . . . . . . . . . . . Zone Layout 2 | . . . . . . . . . . . . . . . . . . . . . . . . . 1 . . 1 . Patrol Navigation 1 | . . . . . . 1 . . . . . . . . . . . . . . . . . . . . . . . Security Stations 1 | . . . . . . 1 . . . . . . . . . . . . . . . . . . . . . . . Release Object 1 | . . . . . . . . . . . . . . . . . . . . . . . 1 . . . . . . Fabricator Hacks 4 | . . . . . . . . . 1 . . . . . . . . . . . . 1 . . . . . . 2 Network Status 2 | . . . . . . . . . 1 . . . . . . . . . . . . 1 . . . . . . . Load Schematic 1 | . . . . . . . . . . . . . . . . . . . . . . . . . . . . . 1 Build 1 | . . . . . . . . . . . . . . . . . . . . . . . . . . . . . 1 Repair Station Hacks 3 | . . . . . . . . . . . . . . . . 3 . . . . . . . . . . . . . Scan Component 2 | . . . . . . . . . . . . . . . . 2 . . . . . . . . . . . . . Repair 1 | . . . . . . . . . . . . . . . . 1 . . . . . . . . . . . . . Recycling Unit Hacks 2 | . . . . . . . . . . . . . . 1 . . . . . . 1 . . . . . . . . Retrieve Components 2 | . . . . . . . . . . . . . . 1 . . . . . . 1 . . . . . . . . Scanalyzer 17 | . . . . . . . . . 12 . . . . . . . . . . . 2 . . . . . . 3 . Insert Component 5 | . . . . . . . . . 3 . . . . . . . . . . . 1 . . . . . . 1 . Analyze 9 | . . . . . . . . . 8 . . . . . . . . . . . 1 . . . . . . . . Retrieve Study 3 | . . . . . . . . . 1 . . . . . . . . . . . . . . . . . . 2 . Garrison Access Hacks 1 | . . . . . 1 . . . . . . . . . . . . . . . . . . . . . . . . Unlock Access 1 | . . . . . 1 . . . . . . . . . . . . . . . . . . . . . . . . Unauthorized Hacks 15 | . 2 . . 1 . . . . 1 . . . 1 1 . 1 . . . . . 2 . . 1 . 1 2 2 Terminals 9 | . . . . 1 . . . . 1 . . . 1 . . . . . . . . 1 . . 1 . 1 2 1 Assimilate 1 | . . . . 1 . . . . . . . . . . . . . . . . . . . . . . . . . Botnet 7 | . . . . . . . . . 1 . . . . . . . . . . . . 1 . . 1 . 1 2 1 Sabotage 1 | . . . . . . . . . . . . . 1 . . . . . . . . . . . . . . . . Fabricators . | . . . . . . . . . . . . . . . . . . . . . . . . . . . . . . Repair Stations 1 | . . . . . . . . . . . . . . . . . . . . . . 1 . . . . . . . Mechanics 1 | . . . . . . . . . . . . . . . . . . . . . . 1 . . . . . . . Recycling Units 3 | . 2 . . . . . . . . . . . . 1 . . . . . . . . . . . . . . . Tunnel 3 | . 2 . . . . . . . . . . . . 1 . . . . . . . . . . . . . . . Scanalyzers . | . . . . . . . . . . . . . . . . . . . . . . . . . . . . . . Garrison Access 2 | . . . . . . . . . . . . . . . . 1 . . . . . . . . . . . . 1 Jam 2 | . . . . . . . . . . . . . . . . 1 . . . . . . . . . . . . 1 Data Cores Recovered 3 | . . . . . . . . . . 1 . . . . . . . . . . 1 . . 1 . . . . . Used . | . . . . . . . . . . . . . . . . . . . . . . . . . . . . . . Hacking Detections 64 | . 5 1 . 4 4 2 4 . 7 6 1 . 3 2 . 2 . . . . 1 4 . 1 3 . 2 5 7 Full Trace Events 1 | . . . . . . . 1 . . . . . . . . . . . . . . . . . . . . . . Feedback Events . | . . . . . . . . . . . . . . . . . . . . . . . . . . . . . . Feedback Blocked . | . . . . . . . . . . . . . . . . . . . . . . . . . . . . . . Robot Schematics Acquired 2 | . . . . . . . . . . . . . . . . . . . . . . . . . 2 . . . . Robots Built . | . . . . . . . . . . . . . . . . . . . . . . . . . . . . . . Authchips . | . . . . . . . . . . . . . . . . . . . . . . . . . . . . . . Time . | . . . . . . . . . . . . . . . . . . . . . . . . . . . . . . Total Robot Build Rating . | . . . . . . . . . . . . . . . . . . . . . . . . . . . . . . Part Schematics Acquired 9 | . 1 . . 1 . . 1 . 3 . . . . . . . . . . . 1 . . . 2 . . . . Parts Built 1 | . . . . . . . . . . . . . . . . . . . . . . . . . . . . . 1 Authchips 1 | . . . . . . . . . . . . . . . . . . . . . . . . . . . . . 1 Time 68 | . . . . . . . . . . . . . . . . . . . . . . . . . . . . . 68 Total Part Build Rating 8 | . . . . . . . . . . . . . . . . . . . . . . . . . . . . . 8 Part Studies Acquired 3 | . . . . . . . . . 1 . . . . . . . . . . . . . . . . . . 2 . Parts Repaired 1 | . . . . . . . . . . . . . . . . 1 . . . . . . . . . . . . . Time 136 | . . . . . . . . . . . . . . . . 136 . . . . . . . . . . . . . Parts Recycled . | . . . . . . . . . . . . . . . . . . . . . . . . . . . . . . Recycled Matter . | . . . . . . . . . . . . . . . . . . . . . . . . . . . . . . Retrieved Matter . | . . . . . . . . . . . . . . . . . . . . . . . . . . . . . . Retrieved Components 3 | . . . . . . . . . . . . . . 2 . . . . . . 1 . . . . . . . . Parts Scanalyzed 4 | . . . . . . . . . 3 . . . . . . . . . . . 1 . . . . . . . . Part Schematics Acquired 4 | . . . . . . . . . 3 . . . . . . . . . . . 1 . . . . . . . . Parts Damaged . | . . . . . . . . . . . . . . . . . . . . . . . . . . . . . . Bothacking | -11 -10 -9 -9 -8 -8 -8 -8 -8 -6 -6 -6 -6 -6 -5 -5 -5 -5 -5 -5 -4 -4 -4 -4 -3 -3 -2 -2 -2 -1 ------------ Run | Yrd Mat Mat Min Mat Sto Gar Rec Scr Fac Ext Cet Arc Hub Fac Was Fac Upp Upp War Pro Fac Arm Lab Res Qua Res Tes Sec Acc Used RIF Installer . | . . . . . . . . . . . . . . . . . . . . . . . . . . . . . . Robots Hacked . | . . . . . . . . . . . . . . . . . . . . . . . . . . . . . . Non-combat . | . . . . . . . . . . . . . . . . . . . . . . . . . . . . . . Combat . | . . . . . . . . . . . . . . . . . . . . . . . . . . . . . . Robot Hacks Applied . | . . . . . . . . . . . . . . . . . . . . . . . . . . . . . . Relay Couplers Released 29 | . . . . . . 22 . . 1 . . . 3 . . . . . . . . . . . . 3 . . . Machine Destruction 29 | . . . . . . 22 . . 1 . . . 3 . . . . . . . . . . . . 3 . . . Fabnet Peak Effective % . | . . . . . . . . . . . . . . . . . . . . . . . . . . . . . . Robots Rewired 30 | . . . . . . 3 8 . . 11 . . . . . . . . . . . 8 . . . . . . . Allies Hacked . | . . . . . . . . . . . . . . . . . . . . . . . . . . . . . . Hacks Repelled . | . . . . . . . . . . . . . . . . . . . . . . . . . . . . . . Allies | -11 -10 -9 -9 -8 -8 -8 -8 -8 -6 -6 -6 -6 -6 -5 -5 -5 -5 -5 -5 -4 -4 -4 -4 -3 -3 -2 -2 -2 -1 -------- Run | Yrd Mat Mat Min Mat Sto Gar Rec Scr Fac Ext Cet Arc Hub Fac Was Fac Upp Upp War Pro Fac Arm Lab Res Qua Res Tes Sec Acc Total Allies 58 | . . . . 1 10 4 8 . . 21 5 . . . 1 . . . . . . 8 . . . . . . . Largest Group 15 | . . . . 1 10 8 9 7 7 15 12 8 8 . 1 . . . . . . 4 2 . . . . . . Highest-Rated Group 598 | . . . . 10 173 141 147 122 122 528 598 575 575 . 31 . . . . . . 272 136 . . . . . . Highest-Rated Ally 159 | . . . . 10 29 31 27 27 27 159 159 96 96 . 31 . . . . . . 68 68 . . . . . . Initial Warlord ECA Mod 10 | . . . . . . . 10 10 8 8 8 8 8 7 7 7 7 7 7 6 6 6 6 5 5 4 4 4 3 Total Orders 10 | . . . . . . . 1 7 1 . . . . . . . . . . . . . 1 . . . . . . STAY 1 | . . . . . . . . . . . . . . . . . . . . . . . 1 . . . . . . FOLLOW 3 | . . . . . . . . 3 . . . . . . . . . . . . . . . . . . . . . DROP 2 | . . . . . . . . 1 1 . . . . . . . . . . . . . . . . . . . . PICKUP 4 | . . . . . . . 1 3 . . . . . . . . . . . . . . . . . . . . . Ally Attacks 458 | . . . . . 24 70 16 . 7 100 62 10 73 . 5 . . . . . . 77 14 . . . . . . Total Damage 14393 | . . . . . 250 913 567 . 124 1985 1764 312 3496 . 64 . . . . . . 4317 601 . . . . . . Kills 94 | . . . . . 4 9 7 . 2 16 6 3 25 . . . . . . . . 22 . . . . . . . Allies Corrupted 3 | . . . . . . . . . . . . . 1 . . . . . . . . . 2 . . . . . . Allies Melted . | . . . . . . . . . . . . . . . . . . . . . . . . . . . . . . Intel | -11 -10 -9 -9 -8 -8 -8 -8 -8 -6 -6 -6 -6 -6 -5 -5 -5 -5 -5 -5 -4 -4 -4 -4 -3 -3 -2 -2 -2 -1 ------- Run | Yrd Mat Mat Min Mat Sto Gar Rec Scr Fac Ext Cet Arc Hub Fac Was Fac Upp Upp War Pro Fac Arm Lab Res Qua Res Tes Sec Acc Active Infowar (turns) 17437 | 57 1947 410 . 389 . 1 . 1 364 20 . . 6 545 618 807 487 314 874 583 1638 1262 366 814 716 1451 233 1595 1939 Sensors 2 | . . . . . . . . . . . . . . . . . . . . . . . . . . 2 . . . IFF 4489 | . . . . . . . . . . . . . . . . . . . . . . . . 473 413 1175 227 903 1298 Terrain 1 | . . . . . . . . 1 . . . . . . . . . . . . . . . . . . . . . Traps 1 | . . . . . . 1 . . . . . . . . . . . . . . . . . . . . . . . Seismic 8989 | 57 1947 410 . 389 . . . . 298 20 . . 6 545 618 739 337 314 874 554 744 1085 . 52 . . . . . Machine Analysis 325 | . . . . . . . . . 325 . . . . . . . . . . . . . . . . . . . . Cloaking 1 | . . . . . . . . . . . . . . . . . . . 1 . . . . . . . . . . Jamming 12400 | . . . . . . . . . . . . . . . 615 807 487 314 615 29 1593 1261 366 667 716 1237 233 1595 1865 Robot Analysis Total 2 | . . . . 1 . . 1 . . . . . . . . . . . . . . . . . . . . . . Derelict Logs Recovered 3 | . . . . . . . . . . . . . . . . . . 2 . 1 . . . . . . . . . Drone Launches 14 | . . . . . 14 . . . . . . . . . . . . . . . . . . . . . . . . Drone Recoveries . | . . . . . . . . . . . . . . . . . . . . . . . . . . . . . . Exploration | -11 -10 -9 -9 -8 -8 -8 -8 -8 -6 -6 -6 -6 -6 -5 -5 -5 -5 -5 -5 -4 -4 -4 -4 -3 -3 -2 -2 -2 -1 ------------- Run | Yrd Mat Mat Min Mat Sto Gar Rec Scr Fac Ext Cet Arc Hub Fac Was Fac Upp Upp War Pro Fac Arm Lab Res Qua Res Tes Sec Acc Turns Passed 33768 | 148 2131 560 338 806 1447 2893 2064 3943 895 1033 725 541 726 558 618 807 487 314 1375 652 1638 1262 622 817 719 1513 382 1595 2159 Spaces Moved 15564 | 94 1172 251 188 300 696 1269 915 1789 516 486 323 251 310 288 277 260 265 174 690 346 539 592 301 392 313 781 205 672 909 Core 5 | 5 . . . . . . . . . . . . . . . . . . . . . . . . . . . . . Treads 8715 | . 351 251 188 5 12 368 95 610 . 9 287 251 310 . . 110 265 174 690 346 365 455 301 392 313 781 205 672 909 Legs 816 | 89 727 . . . . . . . . . . . . . . . . . . . . . . . . . . . . Wheels 6028 | . 94 . . 295 684 901 820 1179 516 477 36 . . 288 277 150 . . . . 174 137 . . . . . . . Hover . | . . . . . . . . . . . . . . . . . . . . . . . . . . . . . . Flight . | . . . . . . . . . . . . . . . . . . . . . . . . . . . . . . Fastest Speed 50 | 50 95 160 160 150 145 155 150 135 126 130 130 156 156 160 160 160 160 160 160 165 138 138 160 160 160 160 160 151 146 Average Speed 169 | 116 143 160 160 176 148 180 202 216 131 138 189 174 159 160 183 200 160 160 169 165 179 155 160 160 160 160 160 155 153 Slowest Speed 640 | 120 190 160 160 205 240 235 640 405 155 625 235 235 245 160 220 240 160 160 245 250 252 162 160 160 160 160 160 230 237 Overloaded Moves . | . . . . . . . . . . . . . . . . . . . . . . . . . . . . . . Propulsion Burnouts . | . . . . . . . . . . . . . . . . . . . . . . . . . . . . . . Robots Hopped . | . . . . . . . . . . . . . . . . . . . . . . . . . . . . . . Potential Cave-ins 4 | . . . . . . . . . . . . . . . . . . . . . 2 . . . . . . . 2 Cave-ins Triggered . | . . . . . . . . . . . . . . . . . . . . . . . . . . . . . . Exploration Rate (%) 49 | 6 98 19 42 29 90 96 98 60 15 73 76 77 44 9 86 9 49 34 86 61 20 41 99 12 30 30 35 27 20 Regions Visited 29 Branch Regions 17 Pre-discovered Areas 4 | . 2 . . . . . . . . . . . . 1 . . 1 . . . . . . . . . . . . Known Exits Taken 7 | . . . . 1 1 . . . 1 . . . 1 . . . . . . . 1 . . 1 . . . 1 . Unknown Exits Taken 19 | 1 1 1 1 . . . 1 1 . 1 1 1 . . . 1 1 1 1 1 . 1 1 . 1 1 1 . . Scrap Searched 8 | . . . 1 . . . . 4 . . . . . . . . 2 . . 1 . . . . . . . . . Spaces Dug 509 | . 14 6 8 13 4 39 . . 11 6 . . 9 17 4 10 7 12 . 12 49 37 . 54 25 35 15 47 75 Terrain Destroyed 1325 | . 21 39 8 25 4 158 8 . 36 21 2 16 62 25 176 67 12 12 4 25 91 46 . 69 49 65 16 106 162 Melee 79 | . . . . 11 4 8 . . 11 . . . . 14 . 2 . . . 1 4 19 . 2 3 . . . . Projectile 575 | . 14 . . 2 . . 8 . 1 . 2 16 44 3 4 31 12 12 4 3 43 27 . 13 46 62 4 106 118 AOE 671 | . 7 39 8 12 . 150 . . 24 21 . . 18 8 172 34 . . . 21 44 . . 54 . 3 12 . 44 Terrain Rammed . | . . . . . . . . . . . . . . . . . . . . . . . . . . . . . . Walls Destroyed . | . . . . . . . . . . . . . . . . . . . . . . . . . . . . . . Machines Disabled . | . . . . . . . . . . . . . . . . . . . . . . . . . . . . . . Actions | -11 -10 -9 -9 -8 -8 -8 -8 -8 -6 -6 -6 -6 -6 -5 -5 -5 -5 -5 -5 -4 -4 -4 -4 -3 -3 -2 -2 -2 -1 --------- Run | Yrd Mat Mat Min Mat Sto Gar Rec Scr Fac Ext Cet Arc Hub Fac Was Fac Upp Upp War Pro Fac Arm Lab Res Qua Res Tes Sec Acc Total 20591 | 121 1442 397 204 457 974 1619 1085 1861 652 761 402 319 425 353 328 487 296 190 849 399 1119 846 391 539 426 945 237 1062 1405 Wait 1618 | 2 91 120 5 44 151 50 55 27 9 42 14 31 14 5 15 134 . . 11 2 245 36 28 101 12 18 . 183 173 Move 15535 | 93 1171 250 187 299 696 1267 914 1788 515 485 322 250 309 288 276 259 264 173 689 345 538 591 300 391 312 780 204 671 908 Hop . | . . . . . . . . . . . . . . . . . . . . . . . . . . . . . . Pick Up 329 | 10 20 6 . 22 9 21 5 11 19 9 15 5 7 14 . 12 4 . 22 7 33 23 4 3 5 11 . 13 19 Fast Attach 147 | 5 10 2 . . 5 9 2 8 6 8 1 1 3 3 1 5 1 . 10 . 20 10 7 1 1 10 . 6 12 Attach 154 | 2 2 2 1 5 1 8 2 5 12 3 5 1 10 9 . 8 3 . 7 7 15 4 2 2 . 4 6 9 19 Detach 36 | . . . . . . 3 1 1 2 . . . 1 2 . 4 . . 1 1 7 1 2 . . . 1 5 4 Swap 546 | . 29 3 1 18 28 42 8 6 18 35 10 4 19 6 6 18 5 . 29 12 43 35 7 15 25 30 13 32 49 Drop 363 | . 27 6 . 14 18 20 10 15 23 24 14 8 3 5 . 7 1 . 34 3 37 36 9 2 6 18 1 8 14 Fire 1359 | 9 92 8 10 40 48 121 24 . 33 36 21 19 59 7 30 28 18 17 36 21 170 32 7 21 59 74 12 134 173 Melee 154 | . . . . 15 12 30 . . 15 . . . . 14 . 4 . . . 1 11 27 16 3 6 . . . . Ram . | . . . . . . . . . . . . . . . . . . . . . . . . . . . . . . Kick . | . . . . . . . . . . . . . . . . . . . . . . . . . . . . . . Crush 8 | . . . . . . 1 . . . . . . . . . . . . 1 . . . . . . . . 1 5 Escape Stasis 80 | . . . . . . 32 . . . 40 . . . . . 8 . . . . . . . . . . . . . Rewire 209 | . . . . . . 15 64 . . 79 . . . . . . . . . . . 51 . . . . . . . Trap . | . . . . . . . . . . . . . . . . . . . . . . . . . . . . . . Miscellaneous 53 | . . . . . 6 . . . . . . . . . . . . . 9 . . . 9 . . . . . 29 Route ------- -11/Scrapyard -10/Materials (discovered 5 exits: *Mat x3 / [*Min] / [*Sub]) -9/Materials -9/Mines -8/Materials (discovered 2 exits: *Sto x2) -8/Storage (discovered 2 exits: [*Fac] / Gar) -8/Garrison (discovered 3 exits: *Rec x3) -8/Recycling (discovered 2 exits: *Fac / [*Scr]) -8/Scraptown -6/Factory (discovered 4 exits: *Low x2 / *Ext x2) -6/Extension (discovered 2 exits: *Fac / *Cet) -6/Cetus (discovered 2 exits: *Fac / [*Arc]) -6/Archives (discovered 3 exits: *Fac / *Hub x2) -6/Hub_04(d) (discovered 4 exits: *Fac x4) -5/Factory -5/Waste -5/Factory -5/Upper Caves -5/Upper Caves -5/Warlord -4/Proximity Caves -4/Factory (discovered 2 exits: [*Upp] / *Arm) -4/Armory -4/Lab -3/Research (discovered 3 exits: [*Res] / *Qua x2) -3/Quarantine -2/Research (discovered 3 exits: *Acc x2 / *Tes) -2/Testing (discovered 3 exits: *Acc / *Sec / [*Frg]) -2/Section 7 -1/Access To Epsilon Eridani History --------- Turn | Location | Event 7 | -11/Scrapyard | Discovered new exit (range 15) 149 | -11/Scrapyard | Entered Materials 233 | -10/Materials | Discovered new exit (range 6) 267 | -10/Materials | Discovered new exit (range 15) 307 | -10/Materials | Build established: Mutant 448 | -10/Materials | Discovered new exit (range 10) 820 | -10/Materials | Discovered new exit (range 9) 928 | -10/Materials | Discovered new exit (range 16) 993 | -10/Materials | Build established: Scavenger-Mutant 1517 | -10/Materials | Core integrity fell below 50% 1823 | -10/Materials | Build established: Mutant 2280 | -10/Materials | Entered another Materials area 2280 | -9/Materials | Evolved 2 slots: Utility x1, Weapon x1 2366 | -9/Materials | Discovered new exit (range 8) 2665 | -9/Materials | Build established: Tank 2840 | -9/Materials | Entered Mines 3143 | -9/Mines | Discovered new exit (range 6) 3178 | -9/Mines | Entered Materials 3178 | -8/Materials | Evolved 2 slots: Propulsion x1, Utility x1 3249 | -8/Materials | Discovered new exit (range 13) 3394 | -8/Materials | Identified exit to Storage 3984 | -8/Materials | Entered Storage 3984 | -8/Storage | Accompanied by 1 ally 4569 | -8/Storage | Found Prototype Protection 4569 | -8/Storage | Identified Lgt. Regenerative Plating 4910 | -8/Storage | Assisted by bots powering up and referring to "LRC-V3" 4950 | -8/Storage | Lost 4 allies 5069 | -8/Storage | Discovered new exit (range 8) 5345 | -8/Storage | Build established: Commander-Mutant 5420 | -8/Storage | Identified exit to Garrison 5431 | -8/Storage | Entered Garrison 5431 | -8/Garrison | Accompanied by 15 allies 5471 | -8/Garrison | Triggered checkpoint 5749 | -8/Garrison | Triggered checkpoint 5781 | -8/Garrison | Garrison Relay disabled 5925 | -8/Garrison | Triggered checkpoint 5996 | -8/Garrison | Lost 10 allies 5998 | -8/Garrison | Destroyed 10 combat bots 6107 | -8/Garrison | Garrison Relay disabled 6284 | -8/Garrison | Discovered new exit (range 13) 6379 | -8/Garrison | Triggered checkpoint 6461 | -8/Garrison | Garrison Relay disabled 6472 | -8/Garrison | Learned Recycling security intel 6672 | -8/Garrison | Discovered new exit (range 13) 6692 | -8/Garrison | Build established: Tank 6715 | -8/Garrison | Triggered checkpoint 6769 | -8/Garrison | Rescued a captive Derelict 6918 | -8/Garrison | Garrison Relay disabled 6937 | -8/Garrison | Triggered checkpoint 6995 | -8/Garrison | Triggered checkpoint 7075 | -8/Garrison | Triggered checkpoint 7147 | -8/Garrison | Lost 3 parts (1p1n1u) 7193 | -8/Garrison | Discovered new exit (range 15) 7359 | -8/Garrison | Phase Generator disabled 7500 | -8/Garrison | Build established: Mutant 7632 | -8/Garrison | Garrison Relay disabled 7668 | -8/Garrison | System corruption reached 10% 7820 | -8/Garrison | Attempted to access garrison exit controls, blocked by remote lockdown 7917 | -8/Garrison | Triggered checkpoint 7937 | -8/Garrison | Triggered checkpoint 8069 | -8/Garrison | Triggered checkpoint 8118 | -8/Garrison | Build established: Tank 8324 | -8/Garrison | Entered Recycling 8324 | -8/Recycling | Accompanied by 3 allies 8834 | -8/Recycling | Build established: Commander-Tank 9566 | -8/Recycling | Discovered new exit (range 16) 10337 | -8/Recycling | Scanned before Scraplab entrance 10358 | -8/Recycling | Entered Scraplab 10371 | -8/Recycling | Discovered new exit (range 2) 10388 | -8/Recycling | Entered Scraptown 10388 | -8/Scraptown | Accompanied by 7 allies 10388 | -8/Scraptown | System corruption cleaned by C-Scrubber 10531 | -8/Scraptown | Build established: Commander-Mutant 10544 | -8/Scraptown | Visited Comm Corps 10603 | -8/Scraptown | Visited CR-KLE's Repair Center 10631 | -8/Scraptown | Visited The Evicted 10659 | -8/Scraptown | Visited Fellowship of the Rings 10730 | -8/Scraptown | Discovered new exit (range 11) 11013 | -8/Scraptown | Visited Cyclists 11052 | -8/Scraptown | Visited Red Mages 11158 | -8/Scraptown | Visited Spacefarers 12936 | -8/Scraptown | CR-KLE repaired 10 parts 14280 | -8/Scraptown | System corruption cleaned by C-Scrubber 14331 | -8/Scraptown | Entered Factory 14331 | -6/Factory | Accompanied by 7 allies 14331 | -6/Factory | Evolved 4 slots: Propulsion x2, Utility x2 14428 | -6/Factory | Identified exit to DSF 14523 | -6/Factory | Discovered new exit (range 16) 14543 | -6/Factory | Identified exit to Lower Caves 14707 | -6/Factory | Discovered exit to Lower Caves (range 15) 14758 | -6/Factory | Lost 4 allies 14959 | -6/Factory | Central database locked down 14984 | -6/Factory | Build established: Tank 15014 | -6/Factory | Identified exit to Extension 15226 | -6/Factory | Entered Extension 15226 | -6/Extension | Accompanied by 1 ally 15401 | -6/Extension | Rescued a captive Derelict 15402 | -6/Extension | Rescued a captive Derelict 15512 | -6/Extension | Rescued a captive Derelict 15512 | -6/Extension | Rescued a captive Derelict 15670 | -6/Extension | Build established: Scavenger-Tank 15690 | -6/Extension | Spotted B-75 Beast 15696 | -6/Extension | Spotted B-75 Beast 15703 | -6/Extension | Destroyed B-75 Beast 15722 | -6/Extension | Destroyed B-75 Beast 15951 | -6/Extension | Disrupted transfer network 16010 | -6/Extension | Rescued a captive Derelict 16011 | -6/Extension | Rescued a captive Derelict 16093 | -6/Extension | Rescued A7 16111 | -6/Extension | Rescued a captive Derelict 16112 | -6/Extension | Rescued a captive Derelict 16136 | -6/Extension | Rescued a captive Derelict 16140 | -6/Extension | Rescued a captive Derelict 16175 | -6/Extension | Discovered new exit (range 10) 16177 | -6/Extension | Discovered new exit (range 6) 16195 | -6/Extension | Disrupted transfer network 16222 | -6/Extension | Destroyed 9 combat bots 16234 | -6/Extension | Lost 3 allies 16259 | -6/Extension | Entered Cetus 16259 | -6/Cetus | Accompanied by 12 allies (A7) 16264 | -6/Cetus | Acquired a Cetus Manufacturing Module code from A7 16276 | -6/Cetus | Spotted Cetus Guard 16276 | -6/Cetus | Spotted Cetus Guard 16279 | -6/Cetus | Spotted Cetus Guard 16279 | -6/Cetus | Spotted Cetus Guard 16284 | -6/Cetus | Attached CPS modules to Cetus Guard. 16287 | -6/Cetus | Attached CPS modules to Cetus Guard. 16289 | -6/Cetus | Attached CPS modules to Cetus Guard. 16293 | -6/Cetus | Allies destroyed Cetus Guard 16309 | -6/Cetus | Destroyed Cetus Guard 16318 | -6/Cetus | Extracted ID and sensor layout for unrecognized location from A7's data core 16320 | -6/Cetus | Allies destroyed Cetus Guard 16320 | -6/Cetus | Destroyed Cetus Guard 16346 | -6/Cetus | Lost 7 allies 16469 | -6/Cetus | Started Cetus Manufacturing Module 16494 | -6/Cetus | Manufactured an Enhanced Grunt 16519 | -6/Cetus | Manufactured an Enhanced Grunt 16544 | -6/Cetus | Manufactured an Enhanced Grunt 16569 | -6/Cetus | Manufactured an Enhanced Grunt 16594 | -6/Cetus | Manufactured an Enhanced Grunt 16752 | -6/Cetus | Discovered new exit (range 16) 16781 | -6/Cetus | Spotted Cetus Guard 16781 | -6/Cetus | Spotted Cetus Guard 16787 | -6/Cetus | Destroyed Cetus Guard 16788 | -6/Cetus | Spotted Cetus Guard 16789 | -6/Cetus | Spotted Cetus Guard 16792 | -6/Cetus | Allies destroyed Cetus Guard 16802 | -6/Cetus | Destroyed Cetus Guard 16808 | -6/Cetus | Destroyed Cetus Guard 16817 | -6/Cetus | Discovered new exit (range 15) 16825 | -6/Cetus | Met Revision 17 16984 | -6/Cetus | Entered Archives 16984 | -6/Archives | Accompanied by 8 allies 17034 | -6/Archives | Discovered new exit (range 15) 17057 | -6/Archives | Discovered new exit (range 16) 17153 | -6/Archives | Discovered new exit (range 16) 17525 | -6/Archives | Entered Hub_04(d) 17525 | -6/Hub_04(d) | Accompanied by 8 allies 17645 | -6/Hub_04(d) | Found Prototype Device 17645 | -6/Hub_04(d) | Identified Exp. Thermal Shield 17830 | -6/Hub_04(d) | Garrison activated, responded to threat 17876 | -6/Hub_04(d) | Garrison activated, responded to threat 17909 | -6/Hub_04(d) | Identified exit to Factory 18078 | -6/Hub_04(d) | Network Hub disabled 18121 | -6/Hub_04(d) | Spotted Lightning 18123 | -6/Hub_04(d) | Spotted Lightning 18126 | -6/Hub_04(d) | Spotted Lightning 18137 | -6/Hub_04(d) | Attached CPS modules to Lightning. 18156 | -6/Hub_04(d) | System corruption reached 10% 18180 | -6/Hub_04(d) | Destroyed Lightning 18202 | -6/Hub_04(d) | Garrison activated, responded to threat 18202 | -6/Hub_04(d) | Destroyed Lightning 18225 | -6/Hub_04(d) | First assault squad dispatched 18226 | -6/Hub_04(d) | Found Prototype Energy Cannon 18234 | -6/Hub_04(d) | Lost 10 parts (2n5u3w) 18251 | -6/Hub_04(d) | Entered Factory 18251 | -5/Factory | Evolved 2 slots: Power x1, Utility x1 18281 | -5/Factory | Lost 3 parts (1p1n1u) 18612 | -5/Factory | Build established: Scavenger-Mutant 18632 | -5/Factory | Discovered new exit (range 4) 18809 | -5/Factory | Sucked down chute 18809 | -5/Factory | Entered Waste 18810 | -5/Waste | Met a frightened Derelict 18824 | -5/Waste | EMP discharged 18871 | -5/Waste | Spotted C-40 Crusher 18889 | -5/Waste | Destroyed C-40 Crusher 18920 | -5/Waste | Spotted C-40 Crusher 18924 | -5/Waste | EMP discharged 18924 | -5/Waste | System corruption reached 10% 18978 | -5/Waste | Destroyed C-40 Crusher 19024 | -5/Waste | EMP discharged 19025 | -5/Waste | Spotted C-40 Crusher 19028 | -5/Waste | Spotted C-40 Crusher 19044 | -5/Waste | Destroyed C-40 Crusher 19057 | -5/Waste | Destroyed C-40 Crusher 19122 | -5/Waste | Spotted C-40 Crusher 19124 | -5/Waste | EMP discharged 19124 | -5/Waste | System corruption reached 30% 19126 | -5/Waste | Build established: Scavenger-Gunner 19188 | -5/Waste | Destroyed C-40 Crusher 19224 | -5/Waste | EMP discharged 19324 | -5/Waste | EMP discharged 19352 | -5/Waste | Spotted C-40 Crusher 19405 | -5/Waste | Discovered new exit (range 11) 19424 | -5/Waste | EMP discharged 19427 | -5/Waste | Entered Factory 19585 | -5/Factory | Repaired Broken Centrium Heavy Treads 19754 | -5/Factory | Build established: Scavenger-Mutant 20032 | -5/Factory | Discovered new exit (range 13) 20068 | -5/Factory | Lost 3 parts (1n2w) 20234 | -5/Factory | Entered Upper Caves 20248 | -5/Upper Caves | Attracted the attention of an 0b10 checkpoint 20249 | -5/Upper Caves | Build established: Scavenger-Tank 20293 | -5/Upper Caves | Met a Warlord Commander 20294 | -5/Upper Caves | Learned location of Warlord (-5) 20295 | -5/Upper Caves | Warlord Commander delivered Encrypted Comm Array 20300 | -5/Upper Caves | Found Encrypted Comm Array 20313 | -5/Upper Caves | Lost 3 parts (1p1u1w) 20672 | -5/Upper Caves | Discovered new exit (range 10) 20721 | -5/Upper Caves | Entered another Upper Caves area 20805 | -5/Upper Caves | Learned Factory garrison access intel 20856 | -5/Upper Caves | Learned 12 Factory zone layouts 21028 | -5/Upper Caves | Discovered new exit (range 5) 21035 | -5/Upper Caves | Entered Warlord 21090 | -5/Warlord | System corruption cleaned by Quarantine Array 21197 | -5/Warlord | Identified EMDS 21678 | -5/Warlord | Found Prototype Reactor 21739 | -5/Warlord | Met Warlord 21758 | -5/Warlord | Warlord's base attacked by MAIN.C 21848 | -5/Warlord | Found Prototype Energy Gun 21849 | -5/Warlord | Identified Vortex Shotgun 21852 | -5/Warlord | Found Vortex Shotgun 21857 | -5/Warlord | Found Prototype Energy Cannon 21858 | -5/Warlord | Identified Vortex Cannon 21861 | -5/Warlord | Found Vortex Cannon 21865 | -5/Warlord | Found Vortex Cannon 21868 | -5/Warlord | Found Vortex Cannon 22108 | -5/Warlord | Warlord forces counterattacked 22115 | -5/Warlord | Found Prototype Device 22115 | -5/Warlord | Identified Thermal Barrier 22132 | -5/Warlord | Lost 5 allies 22197 | -5/Warlord | Spotted Executioner 22197 | -5/Warlord | Spotted Executioner 22210 | -5/Warlord | Spotted Striker 22243 | -5/Warlord | Destroyed Executioner 22266 | -5/Warlord | Lost 14 allies 22339 | -5/Warlord | Discovered new exit (range 14) 22353 | -5/Warlord | Lost 6 allies 22358 | -5/Warlord | Spotted Executioner 22358 | -5/Warlord | Spotted Striker 22401 | -5/Warlord | Build established: Scavenger-Mutant 22410 | -5/Warlord | Entered Proximity Caves 22425 | -4/Proximity Caves | Lost 7 allies 22457 | -4/Proximity Caves | Lost 3 parts (1p1u1w) 22492 | -4/Proximity Caves | Lost 4 allies 22641 | -4/Proximity Caves | Attracted the attention of an 0b10 checkpoint 22881 | -4/Proximity Caves | Learned Research emergency access door positions 23036 | -4/Proximity Caves | Discovered new exit (range 13) 23062 | -4/Proximity Caves | Entered Factory 23062 | -4/Factory | Evolved 2 slots: Propulsion x1, Utility x1 23063 | -4/Factory | Identified exit to Armory 23064 | -4/Factory | Loaded intel: 4 garrison access locations 23455 | -4/Factory | Found Quantum Capacitor 23562 | -4/Factory | Discovered new exit (range 12) 23990 | -4/Factory | Identified Vortex Chain Reactor 24140 | -4/Factory | Destroyed 10 combat bots 24510 | -4/Factory | Build established: Scavenger-Gunner 24700 | -4/Factory | Entered Armory 25255 | -4/Armory | Found Imp. Powered Armor 25567 | -4/Armory | Found Unknown Launcher 25567 | -4/Armory | Identified Gamma Bomb Array 25575 | -4/Armory | Found Fusion Bomb Launcher 25579 | -4/Armory | Found Fusion Bomb Launcher 25940 | -4/Armory | Discovered new exit (range 6) 25962 | -4/Armory | Entered Lab 25962 | -4/Lab | Accompanied by 2 allies 25962 | -4/Lab | Discovered new exit (range 9) 25980 | -4/Lab | Hidden lab's door opened automatically 25980 | -4/Lab | Sensor layout match revealed 25981 | -4/Lab | Gained access to the hidden lab's interior 26007 | -4/Lab | Build established: Mutant 26026 | -4/Lab | Found Alien Artifact 26049 | -4/Lab | Found Alien Artifact 26049 | -4/Lab | Identified Integrated Mediator 26049 | -4/Lab | Installed Integrated Mediator, increased core attachment efficiency 26062 | -4/Lab | Found Alien Artifact 26062 | -4/Lab | Identified Core Expander 26062 | -4/Lab | Installed Core Expander, added new Propulsion slot 26117 | -4/Lab | Found Prototype Hackware 26122 | -4/Lab | Found Prototype Protection 26122 | -4/Lab | Identified Med. Regenerative Plating 26126 | -4/Lab | Found Prototype Energy Gun 26126 | -4/Lab | Identified Tachyon Dispersion Ray 26133 | -4/Lab | Found Prototype Energy Gun 26133 | -4/Lab | Identified Hyp. EM Gauss Rifle 26169 | -4/Lab | Unable to decrypt terminal 26331 | -4/Lab | Detected by scanners 26361 | -4/Lab | Unable to decrypt terminal 26363 | -4/Lab | Found Alien Artifact 26363 | -4/Lab | Identified LC Capacitor 26399 | -4/Lab | Confronted by A5 26423 | -4/Lab | System corruption reached 10% 26426 | -4/Lab | Destroyed A5 26584 | -4/Lab | Entered Research 26584 | -3/Research | Evolved 2 slots: Utility x2 26584 | -3/Research | Identified Quantum Router 26690 | -3/Research | Identified exit to Quarantine 26784 | -3/Research | Revision forces began assault on 0b10 26882 | -3/Research | Met up with Revision 17++ 26917 | -3/Research | Discovered new exit (range 12) 27091 | -3/Research | Build established: Hacker-Tank 27161 | -3/Research | Spotted B-90 Cyclops 27167 | -3/Research | Destroyed B-90 Cyclops 27284 | -3/Research | Research terminal network offline 27401 | -3/Research | Entered Quarantine 27761 | -3/Quarantine | Discovered new exit (range 13) 27795 | -3/Quarantine | Found Alien Artifact 27795 | -3/Quarantine | Identified Phase Redirector 28091 | -3/Quarantine | Found Alien Artifact 28120 | -3/Quarantine | Entered Research 28120 | -2/Research | Warlord forces began assault on 0b10 28120 | -2/Research | Evolved 2 slots: Utility x2 28145 | -2/Research | Distinguished unit "Offensive Angels" dispatched to help 28230 | -2/Research | Research machine network offline 28331 | -2/Research | Borebot progress halted 28464 | -2/Research | Borebot progress halted 28559 | -2/Research | Lost 5 allies 28636 | -2/Research | Borebot progress halted 28978 | -2/Research | Spotted Striker 28980 | -2/Research | Spotted Striker 28996 | -2/Research | Destroyed Striker 29019 | -2/Research | Destroyed Striker 29092 | -2/Research | Discovered new exit (range 15) 29138 | -2/Research | Identified exit to Access 29207 | -2/Research | Spotted Tracker 29208 | -2/Research | Spotted Tracker 29218 | -2/Research | Destroyed Tracker 29236 | -2/Research | Destroyed Tracker 29241 | -2/Research | Destroyed Combat Programmer 29428 | -2/Research | Spotted Striker 29446 | -2/Research | Destroyed Striker 29488 | -2/Research | Destroyed 7 combat bots 29513 | -2/Research | Discovered exit to Access (range 16) 29607 | -2/Research | Spotted Striker 29607 | -2/Research | Spotted Striker 29620 | -2/Research | Discovered new exit (range 9) 29624 | -2/Research | Given Cave Seal Controls access code 29633 | -2/Research | Entered Testing 29662 | -2/Testing | Garrison activated, responded to threat 29715 | -2/Testing | Lost 5 allies 29778 | -2/Testing | Discovered exit to Access (range 8) 29882 | -2/Testing | Spotted Fortress 30001 | -2/Testing | Discovered new exit (range 6) 30001 | -2/Testing | Discovered new exit (range 7) 30015 | -2/Testing | Entered Section 7 30077 | -2/Section 7 | Spotted S7 Guard 30100 | -2/Section 7 | Destroyed S7 Guard 30131 | -2/Section 7 | Found Alien Artifact 30390 | -2/Section 7 | Found Alien Artifact 30390 | -2/Section 7 | Identified Integrated Reactor 30390 | -2/Section 7 | Installed Integrated Reactor, increased core energy generation (+10) 30809 | -2/Section 7 | Identified Integrated Thermoelectric Network 30809 | -2/Section 7 | Installed Integrated Thermoelectric Network, gained heat-energy exchange potential 30973 | -2/Section 7 | System corruption reached 10% 31063 | -2/Section 7 | Found Integrated Reactor 31063 | -2/Section 7 | Installed Integrated Reactor, increased core energy generation (+10) 31115 | -2/Section 7 | Found Alien Artifact 31115 | -2/Section 7 | Identified Spacefold Activator 31380 | -2/Section 7 | Intercept squad dispatched 31404 | -2/Section 7 | Spotted Tracker 31407 | -2/Section 7 | Spotted Tracker 31408 | -2/Section 7 | Destroyed Tracker 31424 | -2/Section 7 | Spotted Combat Programmer 31426 | -2/Section 7 | Destroyed Tracker 31439 | -2/Section 7 | Destroyed Combat Programmer 31461 | -2/Section 7 | Spotted Combat Programmer 31500 | -2/Section 7 | Destroyed Combat Programmer 31515 | -2/Section 7 | First assault squad dispatched 31610 | -2/Section 7 | Entered Access 31610 | -1/Access | Evolved 2 slots: Power x1, Weapon x1 31640 | -1/Access | Garrison activated, responded to threat 32209 | -1/Access | Destroyed 8 combat bots 32210 | -1/Access | Intercept squad dispatched 32210 | -1/Access | Spotted Tracker 32211 | -1/Access | Spotted Tracker 32226 | -1/Access | Destroyed Tracker 32275 | -1/Access | Spotted Combat Programmer 32278 | -1/Access | Destroyed Combat Programmer 32278 | -1/Access | Spotted Combat Programmer 32286 | -1/Access | Destroyed Combat Programmer 32304 | -1/Access | Destroyed Tracker 32321 | -1/Access | Found Prototype Processor 32321 | -1/Access | Identified Exp. Targeting Computer 32458 | -1/Access | Destroyed 8 combat bots 32487 | -1/Access | Discovered new exit (range 4) 32610 | -1/Access | First assault squad dispatched 32634 | -1/Access | Fabricated Centrium Heavy Treads (x1) 32704 | -1/Access | Lost 3 parts (1p1u1w) 33022 | -1/Access | Intercept squad dispatched 33062 | -1/Access | Spotted Tracker 33062 | -1/Access | Spotted Tracker 33064 | -1/Access | Destroyed Tracker 33074 | -1/Access | Destroyed Tracker 33122 | -1/Access | Destroyed 7 combat bots 33123 | -1/Access | Found Exp. Targeting Computer 33134 | -1/Access | Identified Subatomic Replicator 33134 | -1/Access | Used Subatomic Replicator to replicate Centrium Heavy Treads 33143 | -1/Access | Spotted Combat Programmer 33155 | -1/Access | Spotted Combat Programmer 33158 | -1/Access | System corruption reached 10% 33174 | -1/Access | Destroyed Combat Programmer 33182 | -1/Access | Destroyed Combat Programmer 33200 | -1/Access | Found Prototype Device 33202 | -1/Access | Lost 4 parts (1n3u) 33203 | -1/Access | Destroyed 7 combat bots 33270 | -1/Access | Build established: Scavenger-Gunner 33493 | -1/Access | Identified Exp. Phase Shifter 33540 | -1/Access | Lost 5 parts (4u1w) 33622 | -1/Access | High security lockdown imminent 33643 | -1/Access | Destroyed 8 combat bots 33702 | -1/Access | High security lockdown engaged 33756 | -1/Access | Intercept squad dispatched 33769 | *** | Escaped! Last Messages --------------- 33715_ Penetrated by Slug. 33721_ Enh. Nova Cannon+ destroyed. 33722_ ALERT: Assault forces dispatched. 33728_ Penetrated by Slug. 33732_ System corrupted: Matter fused (-9). 33733_ Acquired 9 matter. 33735_ Penetrated by Slug. 33745_ Enh. Hardcell Cannon+ destroyed. 33746_ Penetrated by Slug. 33749_ System corrupted: Matter fused (-6). 33750_ Acquired 6 matter. 33755_ Slug penetrates Wall. 33756_ ALERT: Reliable intel has pinpointed LRC-V3, intercept squad en route. [Achievement: Incoming!] 33762_ Slug penetrates L-61 Swordsman. 33765_ Penetrated by Slug. 33765_ Exp. Phase Shifter destroyed. 33767_ BGI SAMQSWXOA0TM6JA0H&I:XT 33769_ Med. Treads destroyed. Map ----- +----------------------------------------------------+ | ???????????????????# ####### !"#??# #??# | | ??????????????????????????????# ##??# #??# | | ??????????????????????????????# #???# #??# | | ??????????????????????????????# #???# #??# | | ??????????????????????????????# ##### ## # | | ????????????????????????####### % ## " | | ????????????????? %% % ########## | | ????????????????????????#######+##+### ##???????? | | ???????????????????????????? # %#????????? | | ????????????????????????? # #????????? | | ??????????????????????? = # #????????? | | ?????????????????????# # #????????? | | ?????????????????????# # #????????? | | ?????????????????????# # #????????? | | ?????????????????????# # #????????? | | ?????????????????????# # #????????? | | ?????????????????????# ! # #????????? | | ?????????????????????# # %###??????? | | ???????????????????????######## ###### %#=#??????? | | ??????????????????????????????##?????#%*##???????? | | ?????????????????????????#####"####### [#????????? | | ?????????????????????????? " %#????????? | | ??????????????????????????? " #????????? | | ??????????????????????"""""" " #????????? | | ??????????????????????" " " ####?????? | | ??????????????????????" "@ " " # #?????? | | ??????????????????????" "" l # #?????? | | ??????????????????????" ll # #?????? | | ??????????????????????""""" # ##?????? | | ????????????????????" """" # #?????? | | ????????????????????" """"T ####?????? | | ????????????????????##########"####### # #??????? | | ??????????????????????????????????# ###??????? | | ??????????????????????????????????#### ##???????? | | ?????????????????????????????????????# #????????? | | ????????????????????????????#####????# #????????? | | ????????????????????????????# # #????# ##???????? | | ???????????????????##########"#"###### "#???????? | | ?????????????????? % "#???????? | | ??????????????????? %#????????? | | ???????????????????? #????????? | | ???????????????????? #????????? | | ?????????????????????? %#????????? | | ?????????????????????? % +????????? | | ??????????????????????? % % #????????? | | ????????????????????????### %[ #????????? | | ??????????????????????????# "=%%! #????????? | | ??????????????????????????#"" /[ ####?????# | | ??????????????????????????#""= % ########## | | ??????????????????????????#""F %="%% # % %[ | +----------------------------------------------------+ Best States ------------- Heat Dissipation 180 Coolant Potential 100 Energy Generation 89 Energy Capacity 1100 Matter Stores 429 Matter Capacity 450 Sight Range 16 Terrain Scan Density 10 Jamming Range 16 Power Amplification 30 Base Temperature (-) 200 Armor Coverage 1550 Resistance: KI 30 Resistance: TH 50 Weapon Cycling 30 Phase Shifting 20 Evasion (%) 60 Targeting Accuracy 12 Target Analysis 8 Core Analysis 6 Recoil Reduction 7 Matter Filtering 30 Kinecelleration 40 Offensive Hacking 24 Defensive Hacking 37 Authchip Count 2 Item Schematics ----------------- Cargo Storage Unit | -10/Materials | Hacked Arm. Treads | -8/Materials | Hacked Hvy. Assault Cannon | -8/Recycling | Hacked CPS Tube | -6/Factory | Scanalyzed Hrd. Heavy Armor Plating | -6/Factory | Scanalyzed Med. Reactive Plating | -6/Factory | Scanalyzed Centrium Heavy Treads | -4/Factory | Scanalyzed Neutron Missile Launcher | -3/Quarantine | Archive Adv. Plasma Rifle | -3/Quarantine | Archive Robot Schematics ------------------ R-10 Processor | -3/Quarantine | Archive B-74 Champion | -3/Quarantine | Archive Fabricated ------------ Centrium Heavy Treads | x1 | -1/Access | Authchip Repaired ---------- Centrium Heavy Treads | 18% | -5/Factory | Broken Studied --------- Hvy. Machine Gun | -6/Factory | Hacked Enh. Nova Cannon | -2/Section 7 | Hacked Enh. Hardcell Cannon | -2/Section 7 | Hacked Alien Tech Used ----------------- Integrated Mediator Core Expander LC Capacitor Phase Redirector Integrated Reactor Integrated Thermoelectric Network Spacefold Activator Subatomic Replicator Achievements -------------- Incoming! My Bad Challenges ------------ None Game ------ Seed SpikedTimingBooster Manual? 0 Play Time 09:47:21 Cumulative 305.5 hours Start 2026.01.25 @ 23:09:12 End 2026.01.30 @ 00:53:20 Sessions 16 Manual Loads 0 Difficulty Rogue Special Mode None Game No. 78 Rogue 78 Adventurer 0 Explorer 0 Win Type 0 Total 6 Types 5/0/0/1/0/0/0/0/0/0 Lore% 70 Gallery% 68 Achievement% 55 Wizard Run 0 Options --------- Layout 1 ASCII 0 Keyboard 0 Movement Mouse Keybinds 0 Fullscreen 1 Font 32/SmallcapsGlow Map View 50x35 Zoom Use 0% Tactical HUD 1 Map Filters NONE Filters NONE Steam 1 RUN: 4401b3db-588e-49ff-8a96-205a84d67023